Workbook

Sheet ورقة1
A1: اسم الطالب | B1: القران | E1: التقدير | F1: اسلامية | I1: التقدير | J1: اللغة العربية | M1: التقدير | N1: انجليزي | Q1: التقدير | R1: رياضيات | U1: التقدير | V1: العلوم | Y1: التقدير | Z1: اجتماعيات | AC1: التقدير | AD1: مجموع الكلي | AF1: معدل | AG1: ترتيب | AI1: تقدير الطالب | JA1: غ | JB1: غائب
A2: a1 | B2: 16 | C2: 11 | D2: =IF(A2="","",IF(AND(B2="غ",C2="غ"),"غ",SUM(B2:C2))) -> 27 | E2: =IF(D2="","",VLOOKUP(D2,تقدير,2,1)) -> مقبول | F2: 10 | G2: 19 | H2: =IF(A2="","",IF(AND(F2="غ",G2="غ"),"غ",SUM(F2:G2))) -> 29 | I2: =IF(H2="","",VLOOKUP(H2,تقدير,2,1)) -> مقبول | J2: 20 | K2: 0 | L2: =IF(A2="","",IF(AND(J2="غ",K2="غ"),"غ",SUM(J2:K2))) -> 20 | M2: =IF(L2="","",VLOOKUP(L2,تقدير,2,1)) -> دون المستوى | N2: 15 | O2: 0 | P2: =IF(A2="","",IF(AND(N2="غ",O2="غ"),"غ",SUM(N2:O2))) -> 15 | Q2: =IF(P2="","",VLOOKUP(P2,تقدير,2,1)) -> دون المستوى | R2: 17 | S2: 19 | T2: =IF(A2="","",IF(AND(R2="غ",S2="غ"),"غ",SUM(R2:S2))) -> 36 | U2: =IF(T2="","",VLOOKUP(T2,تقدير,2,1)) -> جيد | V2: 17 | W2: 5 | X2: =IF(A2="","",IF(AND(V2="غ",W2="غ"),"غ",SUM(V2:W2))) -> 22 | Y2: =IF(X2="","",VLOOKUP(X2,تقدير,2,1)) -> دون المستوى | Z2: =RANDBETWEEN(0,20) -> 0 | AA2: =RANDBETWEEN(0,20) -> 6 | AB2: =IF(A2="","",IF(AND(Z2="غ",AA2="غ"),"غ",SUM(Z2:AA2))) -> 6 | AC2: =IF(AB2="","",VLOOKUP(AB2,تقدير,2,1)) -> دون المستوى | AD2: =IF(A2="","",IF(AND(D2="غ",H2="غ",L2="غ",P2="غ",T2="غ",X2="غ",AB2="غ"),"غ",SUM(D2,H2,L2,P2,T2,X2,AB2))) -> 155 | AE2: =IF(A2="","",IF(AD2="","",IF(AD2="غ","غائب",VLOOKUP((AD2/350)*100/(2),تقدير,2,1)))) -> دون المستوى | AF2: =IF(A2="","",IF(AD2="غ","غ",AD2/350)) -> 0.4428571429 | AG2: =IF(A2="","",IF(AF2="غ","غائب",IF(COUNTIF(AD$2:$AD2,AD2)=1,OrdeUP100(RANK(AD2,$AD$2:$AD$311)),OrdeUP100(RANK(AD2,$AD$2:$AD$311))&" مكرّر "))) -> الثّامن والثّلاثون | AI2: 25 | AJ2: 32 | AK2: مقبول | AM2: =ISNUMBER(FIND("مكرّر",$AG2)) -> FALSE | JA2: 0 | JB2: دون المستوى
A3: a2 | B3: 16 | C3: 22 | D3: =IF(A3="","",IF(AND(B3="غ",C3="غ"),"غ",SUM(B3:C3))) -> 38 | E3: جيد جداً | F3: 11 | G3: 6 | H3: =IF(A3="","",IF(AND(F3="غ",G3="غ"),"غ",SUM(F3:G3))) -> 17 | I3: دون المستوى | J3: 1 | K3: 2 | L3: =IF(A3="","",IF(AND(J3="غ",K3="غ"),"غ",SUM(J3:K3))) -> 3 | M3: دون المستوى | N3: 6 | O3: 13 | P3: =IF(A3="","",IF(AND(N3="غ",O3="غ"),"غ",SUM(N3:O3))) -> 19 | Q3: دون المستوى | R3: 11 | S3: 11 | T3: =IF(A3="","",IF(AND(R3="غ",S3="غ"),"غ",SUM(R3:S3))) -> 22 | U3: دون المستوى | V3: 11 | W3: 7 | X3: =IF(A3="","",IF(AND(V3="غ",W3="غ"),"غ",SUM(V3:W3))) -> 18 | Y3: دون المستوى | Z3: 20 | AA3: 6 | AB3: =IF(A3="","",IF(AND(Z3="غ",AA3="غ"),"غ",SUM(Z3:AA3))) -> 26 | AC3: مقبول | AD3: =IF(A3="","",IF(AND(D3="غ",H3="غ",L3="غ",P3="غ",T3="غ",X3="غ",AB3="غ"),"غ",SUM(D3,H3,L3,P3,T3,X3,AB3))) -> 143 | AE3: دون المستوى | AF3: =IF(A3="","",IF(AD3="غ","غ",AD3/350)) -> 0.4085714286 | AG3: =IF(A3="","",IF(AF3="غ","غائب",IF(COUNTIF(AD$2:$AD3,AD3)=1,OrdeUP100(RANK(AD3,$AD$2:$AD$311)),OrdeUP100(RANK(AD3,$AD$2:$AD$311))&" مكرّر "))) -> الثّامن والتّسعون | AI3: 33 | AJ3: 37 | AK3: جيد | JA3: 25 | JB3: مقبول
A4: a3 | B4: 16 | C4: 10 | D4: 26 | E4: مقبول | F4: 18 | G4: 13 | H4: 31 | I4: مقبول | J4: 2 | K4: 10 | L4: 12 | M4: دون المستوى | N4: 16 | O4: 7 | P4: 23 | Q4: دون المستوى | R4: 19 | S4: 16 | T4: 35 | U4: جيد | V4: 12 | W4: 8 | X4: 20 | Y4: دون المستوى | Z4: 18 | AA4: 10 | AB4: 28 | AC4: مقبول | AD4: 175 | AE4: مقبول | AF4: =IF(A4="","",IF(AD4="غ","غ",AD4/350)) -> 0.5 | AG4: =IF(A4="","",IF(AF4="غ","غائب",IF(COUNTIF(AD$2:$AD4,AD4)=1,OrdeUP100(RANK(AD4,$AD$2:$AD$311)),OrdeUP100(RANK(AD4,$AD$2:$AD$311))&" مكرّر "))) -> الثّامن | AI4: 38 | AJ4: 47 | AK4: جيد جداً | JA4: 33 | JB4: جيد
A5: a4 | B5: 14 | C5: 8 | D5: 22 | E5: دون المستوى | F5: 4 | G5: 9 | H5: 13 | I5: دون المستوى | J5: 5 | K5: 9 | L5: 14 | M5: دون المستوى | N5: 1 | O5: 9 | P5: 10 | Q5: دون المستوى | R5: 5 | S5: 20 | T5: 25 | U5: مقبول | V5: 1 | W5: 14 | X5: 15 | Y5: دون المستوى | Z5: 3 | AA5: 13 | AB5: 16 | AC5: دون المستوى | AD5: 115 | AE5: دون المستوى | AF5: 0.3285714286 | AG5: =IF(A5="","",IF(AF5="غ","غائب",IF(COUNTIF(AD$2:$AD5,AD5)=1,OrdeUP100(RANK(AD5,$AD$2:$AD$311)),OrdeUP100(RANK(AD5,$AD$2:$AD$311))&" مكرّر "))) -> مئتين والرّابع والأربعون | AI5: 48 | AJ5: 50 | AK5: ممتاز | JA5: 38 | JB5: جيد جداً
A6: a5 | B6: 20 | C6: 30 | D6: 50 | E6: ممتاز | F6: 9 | G6: 13 | H6: 22 | I6: دون المستوى | J6: 18 | K6: 4 | L6: 22 | M6: دون المستوى | N6: 17 | O6: 2 | P6: 19 | Q6: دون المستوى | R6: 19 | S6: 13 | T6: 32 | U6: مقبول | V6: 17 | W6: 8 | X6: 25 | Y6: مقبول | Z6: 6 | AA6: 15 | AB6: 21 | AC6: دون المستوى | AD6: 191 | AE6: مقبول | AF6: 0.5457142857 | AG6: =IF(A6="","",IF(AF6="غ","غائب",IF(COUNTIF(AD$2:$AD6,AD6)=1,OrdeUP100(RANK(AD6,$AD$2:$AD$311)),OrdeUP100(RANK(AD6,$AD$2:$AD$311))&" مكرّر "))) -> الثّاني | JA6: 48 | JB6: ممتاز
A7: a6 | B7: 14 | C7: 9 | D7: 23 | E7: دون المستوى | F7: 4 | G7: 18 | H7: 22 | I7: دون المستوى | J7: 11 | K7: 10 | L7: 21 | M7: دون المستوى | N7: 0 | O7: 6 | P7: 6 | Q7: دون المستوى | R7: 0 | S7: 6 | T7: 6 | U7: دون المستوى | V7: 11 | W7: 4 | X7: 15 | Y7: دون المستوى | Z7: 8 | AA7: 15 | AB7: 23 | AC7: دون المستوى | AD7: 116 | AE7: دون المستوى | AF7: 0.3314285714 | AG7: =IF(A7="","",IF(AF7="غ","غائب",IF(COUNTIF(AD$2:$AD7,AD7)=1,OrdeUP100(RANK(AD7,$AD$2:$AD$311)),OrdeUP100(RANK(AD7,$AD$2:$AD$311))&" مكرّر "))) -> مئتين والثّاني والأربعون
A8: a7 | B8: 14 | C8: 11 | D8: 25 | E8: مقبول | F8: 12 | G8: 10 | H8: 22 | I8: دون المستوى | J8: 20 | K8: 3 | L8: 23 | M8: دون المستوى | N8: 0 | O8: 9 | P8: 9 | Q8: دون المستوى | R8: 17 | S8: 11 | T8: 28 | U8: مقبول | V8: 17 | W8: 7 | X8: 24 | Y8: دون المستوى | Z8: 12 | AA8: 16 | AB8: 28 | AC8: مقبول | AD8: 159 | AE8: دون المستوى | AF8: 0.4542857143 | AG8: =IF(A8="","",IF(AF8="غ","غائب",IF(COUNTIF(AD$2:$AD8,AD8)=1,OrdeUP100(RANK(AD8,$AD$2:$AD$311)),OrdeUP100(RANK(AD8,$AD$2:$AD$311))&" مكرّر "))) -> الحادي والثّلاثون
A9: a8 | B9: 20 | C9: 30 | D9: 50 | E9: ممتاز | F9: 4 | G9: 3 | H9: 7 | I9: دون المستوى | J9: 14 | K9: 17 | L9: 31 | M9: مقبول | N9: 11 | O9: 10 | P9: 21 | Q9: دون المستوى | R9: 12 | S9: 11 | T9: 23 | U9: دون المستوى | V9: 15 | W9: 0 | X9: 15 | Y9: دون المستوى | Z9: 17 | AA9: 19 | AB9: 36 | AC9: جيد | AD9: 183 | AE9: مقبول | AF9: 0.5228571429 | AG9: =IF(A9="","",IF(AF9="غ","غائب",IF(COUNTIF(AD$2:$AD9,AD9)=1,OrdeUP100(RANK(AD9,$AD$2:$AD$311)),OrdeUP100(RANK(AD9,$AD$2:$AD$311))&" مكرّر "))) -> السّادس
A10: a9 | B10: 18 | C10: 30 | D10: 48 | E10: ممتاز | F10: 1 | G10: 15 | H10: 16 | I10: دون المستوى | J10: 11 | K10: 13 | L10: 24 | M10: دون المستوى | N10: 10 | O10: 2 | P10: 12 | Q10: دون المستوى | R10: 12 | S10: 14 | T10: 26 | U10: مقبول | V10: 18 | W10: 6 | X10: 24 | Y10: دون المستوى | Z10: 6 | AA10: 14 | AB10: 20 | AC10: دون المستوى | AD10: 170 | AE10: دون المستوى | AF10: 0.4857142857 | AG10: =IF(A10="","",IF(AF10="غ","غائب",IF(COUNTIF(AD$2:$AD10,AD10)=1,OrdeUP100(RANK(AD10,$AD$2:$AD$311)),OrdeUP100(RANK(AD10,$AD$2:$AD$311))&" مكرّر "))) -> الحادي عشر
A11: a10 | B11: 10 | C11: 10 | D11: 20 | E11: دون المستوى | F11: 11 | G11: 14 | H11: 25 | I11: مقبول | J11: 12 | K11: 11 | L11: 23 | M11: دون المستوى | N11: 17 | O11: 7 | P11: 24 | Q11: دون المستوى | R11: 2 | S11: 4 | T11: 6 | U11: دون المستوى | V11: 15 | W11: 1 | X11: 16 | Y11: دون المستوى | Z11: 3 | AA11: 0 | AB11: 3 | AC11: دون المستوى | AD11: 117 | AE11: دون المستوى | AF11: 0.3342857143 | AG11: =IF(A11="","",IF(AF11="غ","غائب",IF(COUNTIF(AD$2:$AD11,AD11)=1,OrdeUP100(RANK(AD11,$AD$2:$AD$311)),OrdeUP100(RANK(AD11,$AD$2:$AD$311))&" مكرّر "))) -> مئتين والسّادس والثّلاثون
A12: a11 | B12: 12 | C12: 13 | D12: 25 | E12: مقبول | F12: 7 | G12: 17 | H12: 24 | I12: دون المستوى | J12: 18 | K12: 14 | L12: 32 | M12: مقبول | N12: 6 | O12: 7 | P12: 13 | Q12: دون المستوى | R12: 13 | S12: 0 | T12: 13 | U12: دون المستوى | V12: 20 | W12: 1 | X12: 21 | Y12: دون المستوى | Z12: 12 | AA12: 8 | AB12: 20 | AC12: دون المستوى | AD12: 148 | AE12: دون المستوى | AF12: 0.4228571429 | AG12: =IF(A12="","",IF(AF12="غ","غائب",IF(COUNTIF(AD$2:$AD12,AD12)=1,OrdeUP100(RANK(AD12,$AD$2:$AD$311)),OrdeUP100(RANK(AD12,$AD$2:$AD$311))&" مكرّر "))) -> التّاسع والستون
A13: a12 | B13: 14 | C13: 10 | D13: 24 | E13: دون المستوى | F13: 11 | G13: 12 | H13: 23 | I13: دون المستوى | J13: 18 | K13: 3 | L13: 21 | M13: دون المستوى | N13: 14 | O13: 5 | P13: 19 | Q13: دون المستوى | R13: 8 | S13: 14 | T13: 22 | U13: دون المستوى | V13: 6 | W13: 4 | X13: 10 | Y13: دون المستوى | Z13: 7 | AA13: 1 | AB13: 8 | AC13: دون المستوى | AD13: 127 | AE13: دون المستوى | AF13: 0.3628571429 | AG13: =IF(A13="","",IF(AF13="غ","غائب",IF(COUNTIF(AD$2:$AD13,AD13)=1,OrdeUP100(RANK(AD13,$AD$2:$AD$311)),OrdeUP100(RANK(AD13,$AD$2:$AD$311))&" مكرّر "))) -> مئة والثّاني والتّسعون
A14: a13 | B14: 12 | C14: 9 | D14: 21 | E14: دون المستوى | F14: 3 | G14: 13 | H14: 16 | I14: دون المستوى | J14: 1 | K14: 3 | L14: 4 | M14: دون المستوى | N14: 1 | O14: 20 | P14: 21 | Q14: دون المستوى | R14: 4 | S14: 17 | T14: 21 | U14: دون المستوى | V14: 11 | W14: 20 | X14: 31 | Y14: مقبول | Z14: 3 | AA14: 7 | AB14: 10 | AC14: دون المستوى | AD14: 124 | AE14: دون المستوى | AF14: 0.3542857143 | AG14: =IF(A14="","",IF(AF14="غ","غائب",IF(COUNTIF(AD$2:$AD14,AD14)=1,OrdeUP100(RANK(AD14,$AD$2:$AD$311)),OrdeUP100(RANK(AD14,$AD$2:$AD$311))&" مكرّر "))) -> مئتين وسبعة | AK14: =
A15: a14 | B15: 20 | C15: 24 | D15: 44 | E15: جيد جداً | F15: 15 | G15: 12 | H15: 27 | I15: مقبول | J15: 11 | K15: 10 | L15: 21 | M15: دون المستوى | N15: 19 | O15: 1 | P15: 20 | Q15: دون المستوى | R15: 1 | S15: 3 | T15: 4 | U15: دون المستوى | V15: 7 | W15: 8 | X15: 15 | Y15: دون المستوى | Z15: 0 | AA15: 6 | AB15: 6 | AC15: دون المستوى | AD15: 137 | AE15: دون المستوى | AF15: 0.3914285714 | AG15: =IF(A15="","",IF(AF15="غ","غائب",IF(COUNTIF(AD$2:$AD15,AD15)=1,OrdeUP100(RANK(AD15,$AD$2:$AD$311)),OrdeUP100(RANK(AD15,$AD$2:$AD$311))&" مكرّر "))) -> مئة والحادي والأربعون
A16: a15 | B16: 20 | C16: 18 | D16: 38 | E16: جيد جداً | F16: 7 | G16: 19 | H16: 26 | I16: مقبول | J16: 1 | K16: 3 | L16: 4 | M16: دون المستوى | N16: 1 | O16: 12 | P16: 13 | Q16: دون المستوى | R16: 9 | S16: 10 | T16: 19 | U16: دون المستوى | V16: 12 | W16: 20 | X16: 32 | Y16: مقبول | Z16: 8 | AA16: 15 | AB16: 23 | AC16: دون المستوى | AD16: 155 | AE16: دون المستوى | AF16: 0.4428571429 | AG16: =IF(A16="","",IF(AF16="غ","غائب",IF(COUNTIF(AD$2:$AD16,AD16)=1,OrdeUP100(RANK(AD16,$AD$2:$AD$311)),OrdeUP100(RANK(AD16,$AD$2:$AD$311))&" مكرّر "))) -> الثّامن والثّلاثون مكرّر
A17: a16 | B17: 14 | C17: 5 | D17: 19 | E17: دون المستوى | F17: 7 | G17: 9 | H17: 16 | I17: دون المستوى | J17: 6 | K17: 5 | L17: 11 | M17: دون المستوى | N17: 12 | O17: 3 | P17: 15 | Q17: دون المستوى | R17: 2 | S17: 20 | T17: 22 | U17: دون المستوى | V17: 7 | W17: 15 | X17: 22 | Y17: دون المستوى | Z17: 11 | AA17: 8 | AB17: 19 | AC17: دون المستوى | AD17: 124 | AE17: دون المستوى | AF17: 0.3542857143 | AG17: =IF(A17="","",IF(AF17="غ","غائب",IF(COUNTIF(AD$2:$AD17,AD17)=1,OrdeUP100(RANK(AD17,$AD$2:$AD$311)),OrdeUP100(RANK(AD17,$AD$2:$AD$311))&" مكرّر "))) -> مئتين وسبعة مكرّر
A18: a17 | B18: 16 | C18: 12 | D18: 28 | E18: مقبول | F18: 15 | G18: 9 | H18: 24 | I18: دون المستوى | J18: 9 | K18: 15 | L18: 24 | M18: دون المستوى | N18: 8 | O18: 17 | P18: 25 | Q18: مقبول | R18: 12 | S18: 2 | T18: 14 | U18: دون المستوى | V18: 5 | W18: 18 | X18: 23 | Y18: دون المستوى | Z18: 17 | AA18: 13 | AB18: 30 | AC18: مقبول | AD18: 168 | AE18: دون المستوى | AF18: 0.48 | AG18: =IF(A18="","",IF(AF18="غ","غائب",IF(COUNTIF(AD$2:$AD18,AD18)=1,OrdeUP100(RANK(AD18,$AD$2:$AD$311)),OrdeUP100(RANK(AD18,$AD$2:$AD$311))&" مكرّر "))) -> الرّابع عشر
A19: a18 | B19: 14 | C19: 8 | D19: 22 | E19: دون المستوى | F19: 20 | G19: 19 | H19: 39 | I19: جيد جداً | J19: 1 | K19: 16 | L19: 17 | M19: دون المستوى | N19: 12 | O19: 2 | P19: 14 | Q19: دون المستوى | R19: 4 | S19: 17 | T19: 21 | U19: دون المستوى | V19: 0 | W19: 7 | X19: 7 | Y19: دون المستوى | Z19: 10 | AA19: 7 | AB19: 17 | AC19: دون المستوى | AD19: 137 | AE19: دون المستوى | AF19: 0.3914285714 | AG19: =IF(A19="","",IF(AF19="غ","غائب",IF(COUNTIF(AD$2:$AD19,AD19)=1,OrdeUP100(RANK(AD19,$AD$2:$AD$311)),OrdeUP100(RANK(AD19,$AD$2:$AD$311))&" مكرّر "))) -> مئة والحادي والأربعون مكرّر
A20: a19 | B20: 16 | C20: 15 | D20: 31 | E20: مقبول | F20: 10 | G20: 4 | H20: 14 | I20: دون المستوى | J20: 6 | K20: 7 | L20: 13 | M20: دون المستوى | N20: 18 | O20: 13 | P20: 31 | Q20: مقبول | R20: 10 | S20: 3 | T20: 13 | U20: دون المستوى | V20: 9 | W20: 0 | X20: 9 | Y20: دون المستوى | Z20: 11 | AA20: 16 | AB20: 27 | AC20: مقبول | AD20: 138 | AE20: دون المستوى | AF20: 0.3942857143 | AG20: =IF(A20="","",IF(AF20="غ","غائب",IF(COUNTIF(AD$2:$AD20,AD20)=1,OrdeUP100(RANK(AD20,$AD$2:$AD$311)),OrdeUP100(RANK(AD20,$AD$2:$AD$311))&" مكرّر "))) -> مئة والسّابع والثّلاثون
A21: a20 | B21: 14 | C21: 8 | D21: 22 | E21: دون المستوى | F21: 9 | G21: 11 | H21: 20 | I21: دون المستوى | J21: 7 | K21: 8 | L21: 15 | M21: دون المستوى | N21: 5 | O21: 1 | P21: 6 | Q21: دون المستوى | R21: 17 | S21: 2 | T21: 19 | U21: دون المستوى | V21: 20 | W21: 9 | X21: 29 | Y21: مقبول | Z21: 1 | AA21: 13 | AB21: 14 | AC21: دون المستوى | AD21: 125 | AE21: دون المستوى | AF21: 0.3571428571 | AG21: =IF(A21="","",IF(AF21="غ","غائب",IF(COUNTIF(AD$2:$AD21,AD21)=1,OrdeUP100(RANK(AD21,$AD$2:$AD$311)),OrdeUP100(RANK(AD21,$AD$2:$AD$311))&" مكرّر "))) -> مئتين
A22: a21 | B22: 2 | C22: 15 | D22: =IF(A22="","",IF(AND(B22="غ",C22="غ"),"غ",SUM(B22:C22))) -> 17 | E22: =IF(D22="","",VLOOKUP(D22,تقدير,2,1)) -> دون المستوى | F22: 5 | G22: 2 | H22: =IF(A22="","",IF(AND(F22="غ",G22="غ"),"غ",SUM(F22:G22))) -> 7 | I22: =IF(H22="","",VLOOKUP(H22,تقدير,2,1)) -> دون المستوى | J22: 19 | K22: 7 | L22: =IF(A22="","",IF(AND(J22="غ",K22="غ"),"غ",SUM(J22:K22))) -> 26 | M22: =IF(L22="","",VLOOKUP(L22,تقدير,2,1)) -> مقبول | N22: 6 | O22: 19 | P22: =IF(A22="","",IF(AND(N22="غ",O22="غ"),"غ",SUM(N22:O22))) -> 25 | Q22: =IF(P22="","",VLOOKUP(P22,تقدير,2,1)) -> مقبول | R22: 13 | S22: 20 | T22: =IF(A22="","",IF(AND(R22="غ",S22="غ"),"غ",SUM(R22:S22))) -> 33 | U22: =IF(T22="","",VLOOKUP(T22,تقدير,2,1)) -> جيد | V22: 4 | W22: 18 | X22: =IF(A22="","",IF(AND(V22="غ",W22="غ"),"غ",SUM(V22:W22))) -> 22 | Y22: =IF(X22="","",VLOOKUP(X22,تقدير,2,1)) -> دون المستوى | Z22: 1 | AA22: 3 | AB22: =IF(A22="","",IF(AND(Z22="غ",AA22="غ"),"غ",SUM(Z22:AA22))) -> 4 | AC22: =IF(AB22="","",VLOOKUP(AB22,تقدير,2,1)) -> دون المستوى | AD22: =IF(A22="","",IF(AND(D22="غ",H22="غ",L22="غ",P22="غ",T22="غ",X22="غ",AB22="غ"),"غ",SUM(D22,H22,L22,P22,T22,X22,AB22))) -> 134 | AE22: =IF(A22="","",IF(AD22="","",IF(AD22="غ","غائب",VLOOKUP((AD22/350)*100/(2),تقدير,2,1)))) -> دون المستوى | AF22: =IF(A22="","",IF(AD22="غ","غ",AD22/350)) -> 0.3828571429 | AG22: =IF(A22="","",IF(AF22="غ","غائب",IF(COUNTIF(AD$2:$AD22,AD22)=1,OrdeUP100(RANK(AD22,$AD$2:$AD$311)),OrdeUP100(RANK(AD22,$AD$2:$AD$311))&" مكرّر "))) -> مئة والسّادس والخمسون
A23: a22 | B23: 13 | C23: 14 | D23: =IF(A23="","",IF(AND(B23="غ",C23="غ"),"غ",SUM(B23:C23))) -> 27 | E23: مقبول | F23: 1 | G23: 8 | H23: =IF(A23="","",IF(AND(F23="غ",G23="غ"),"غ",SUM(F23:G23))) -> 9 | I23: دون المستوى | J23: 3 | K23: 17 | L23: =IF(A23="","",IF(AND(J23="غ",K23="غ"),"غ",SUM(J23:K23))) -> 20 | M23: دون المستوى | N23: 10 | O23: 12 | P23: =IF(A23="","",IF(AND(N23="غ",O23="غ"),"غ",SUM(N23:O23))) -> 22 | Q23: دون المستوى | R23: 14 | S23: 7 | T23: =IF(A23="","",IF(AND(R23="غ",S23="غ"),"غ",SUM(R23:S23))) -> 21 | U23: دون المستوى | V23: 11 | W23: 4 | X23: =IF(A23="","",IF(AND(V23="غ",W23="غ"),"غ",SUM(V23:W23))) -> 15 | Y23: دون المستوى | Z23: 18 | AA23: 14 | AB23: =IF(A23="","",IF(AND(Z23="غ",AA23="غ"),"غ",SUM(Z23:AA23))) -> 32 | AC23: مقبول | AD23: =IF(A23="","",IF(AND(D23="غ",H23="غ",L23="غ",P23="غ",T23="غ",X23="غ",AB23="غ"),"غ",SUM(D23,H23,L23,P23,T23,X23,AB23))) -> 146 | AE23: دون المستوى | AF23: =IF(A23="","",IF(AD23="غ","غ",AD23/350)) -> 0.4171428571 | AG23: =IF(A23="","",IF(AF23="غ","غائب",IF(COUNTIF(AD$2:$AD23,AD23)=1,OrdeUP100(RANK(AD23,$AD$2:$AD$311)),OrdeUP100(RANK(AD23,$AD$2:$AD$311))&" مكرّر "))) -> الحادي والثّمانون
A24: a23 | B24: 10 | C24: 13 | D24: 23 | E24: دون المستوى | F24: 1 | G24: 5 | H24: 6 | I24: دون المستوى | J24: 1 | K24: 2 | L24: 3 | M24: دون المستوى | N24: 3 | O24: 14 | P24: 17 | Q24: دون المستوى | R24: 2 | S24: 15 | T24: 17 | U24: دون المستوى | V24: 16 | W24: 4 | X24: 20 | Y24: دون المستوى | Z24: 14 | AA24: 3 | AB24: 17 | AC24: دون المستوى | AD24: 103 | AE24: دون المستوى | AF24: =IF(A24="","",IF(AD24="غ","غ",AD24/350)) -> 0.2942857143 | AG24: =IF(A24="","",IF(AF24="غ","غائب",IF(COUNTIF(AD$2:$AD24,AD24)=1,OrdeUP100(RANK(AD24,$AD$2:$AD$311)),OrdeUP100(RANK(AD24,$AD$2:$AD$311))&" مكرّر "))) -> مئتين والثّمانون
A25: a24 | B25: 6 | C25: 4 | D25: 10 | E25: دون المستوى | F25: 12 | G25: 1 | H25: 13 | I25: دون المستوى | J25: 20 | K25: 3 | L25: 23 | M25: دون المستوى | N25: 11 | O25: 12 | P25: 23 | Q25: دون المستوى | R25: 8 | S25: 0 | T25: 8 | U25: دون المستوى | V25: 6 | W25: 20 | X25: 26 | Y25: مقبول | Z25: 5 | AA25: 18 | AB25: 23 | AC25: دون المستوى | AD25: 126 | AE25: دون المستوى | AF25: 0.36 | AG25: =IF(A25="","",IF(AF25="غ","غائب",IF(COUNTIF(AD$2:$AD25,AD25)=1,OrdeUP100(RANK(AD25,$AD$2:$AD$311)),OrdeUP100(RANK(AD25,$AD$2:$AD$311))&" مكرّر "))) -> مئة والسّابع والتّسعون
A26: a25 | B26: 6 | C26: 11 | D26: 17 | E26: دون المستوى | F26: 1 | G26: 3 | H26: 4 | I26: دون المستوى | J26: 0 | K26: 8 | L26: 8 | M26: دون المستوى | N26: 10 | O26: 16 | P26: 26 | Q26: مقبول | R26: 14 | S26: 8 | T26: 22 | U26: دون المستوى | V26: 20 | W26: 19 | X26: 39 | Y26: جيد جداً | Z26: 11 | AA26: 1 | AB26: 12 | AC26: دون المستوى | AD26: 128 | AE26: دون المستوى | AF26: 0.3657142857 | AG26: =IF(A26="","",IF(AF26="غ","غائب",IF(COUNTIF(AD$2:$AD26,AD26)=1,OrdeUP100(RANK(AD26,$AD$2:$AD$311)),OrdeUP100(RANK(AD26,$AD$2:$AD$311))&" مكرّر "))) -> مئة والثّامن والثّمانون
A27: a26 | B27: 3 | C27: 9 | D27: 12 | E27: دون المستوى | F27: 10 | G27: 18 | H27: 28 | I27: مقبول | J27: 2 | K27: 0 | L27: 2 | M27: دون المستوى | N27: 7 | O27: 13 | P27: 20 | Q27: دون المستوى | R27: 7 | S27: 18 | T27: 25 | U27: مقبول | V27: 6 | W27: 11 | X27: 17 | Y27: دون المستوى | Z27: 6 | AA27: 15 | AB27: 21 | AC27: دون المستوى | AD27: 125 | AE27: دون المستوى | AF27: 0.3571428571 | AG27: =IF(A27="","",IF(AF27="غ","غائب",IF(COUNTIF(AD$2:$AD27,AD27)=1,OrdeUP100(RANK(AD27,$AD$2:$AD$311)),OrdeUP100(RANK(AD27,$AD$2:$AD$311))&" مكرّر "))) -> مئتين مكرّر
A28: a27 | B28: 14 | C28: 3 | D28: 17 | E28: دون المستوى | F28: 12 | G28: 19 | H28: 31 | I28: مقبول | J28: 10 | K28: 4 | L28: 14 | M28: دون المستوى | N28: 9 | O28: 10 | P28: 19 | Q28: دون المستوى | R28: 5 | S28: 19 | T28: 24 | U28: دون المستوى | V28: 16 | W28: 20 | X28: 36 | Y28: جيد | Z28: 5 | AA28: 15 | AB28: 20 | AC28: دون المستوى | AD28: 161 | AE28: دون المستوى | AF28: 0.46 | AG28: =IF(A28="","",IF(AF28="غ","غائب",IF(COUNTIF(AD$2:$AD28,AD28)=1,OrdeUP100(RANK(AD28,$AD$2:$AD$311)),OrdeUP100(RANK(AD28,$AD$2:$AD$311))&" مكرّر "))) -> الثّامن والعشرون
A29: a28 | B29: 19 | C29: 16 | D29: 35 | E29: جيد | F29: 1 | G29: 13 | H29: 14 | I29: دون المستوى | J29: 9 | K29: 15 | L29: 24 | M29: دون المستوى | N29: 16 | O29: 0 | P29: 16 | Q29: دون المستوى | R29: 14 | S29: 1 | T29: 15 | U29: دون المستوى | V29: 8 | W29: 11 | X29: 19 | Y29: دون المستوى | Z29: 9 | AA29: 13 | AB29: 22 | AC29: دون المستوى | AD29: 145 | AE29: دون المستوى | AF29: 0.4142857143 | AG29: =IF(A29="","",IF(AF29="غ","غائب",IF(COUNTIF(AD$2:$AD29,AD29)=1,OrdeUP100(RANK(AD29,$AD$2:$AD$311)),OrdeUP100(RANK(AD29,$AD$2:$AD$311))&" مكرّر "))) -> التّاسع والثّمانون
A30: a29 | B30: 20 | C30: 17 | D30: 37 | E30: جيد | F30: 15 | G30: 12 | H30: 27 | I30: مقبول | J30: 12 | K30: 0 | L30: 12 | M30: دون المستوى | N30: 6 | O30: 17 | P30: 23 | Q30: دون المستوى | R30: 18 | S30: 17 | T30: 35 | U30: جيد | V30: 13 | W30: 2 | X30: 15 | Y30: دون المستوى | Z30: 4 | AA30: 7 | AB30: 11 | AC30: دون المستوى | AD30: 160 | AE30: دون المستوى | AF30: 0.4571428571 | AG30: =IF(A30="","",IF(AF30="غ","غائب",IF(COUNTIF(AD$2:$AD30,AD30)=1,OrdeUP100(RANK(AD30,$AD$2:$AD$311)),OrdeUP100(RANK(AD30,$AD$2:$AD$311))&" مكرّر "))) -> الثّلاثون
A31: a30 | B31: 18 | C31: 13 | D31: 31 | E31: مقبول | F31: 15 | G31: 10 | H31: 25 | I31: مقبول | J31: 18 | K31: 13 | L31: 31 | M31: مقبول | N31: 20 | O31: 6 | P31: 26 | Q31: مقبول | R31: 2 | S31: 6 | T31: 8 | U31: دون المستوى | V31: 7 | W31: 11 | X31: 18 | Y31: دون المستوى | Z31: 14 | AA31: 16 | AB31: 30 | AC31: مقبول | AD31: 169 | AE31: دون المستوى | AF31: 0.4828571429 | AG31: =IF(A31="","",IF(AF31="غ","غائب",IF(COUNTIF(AD$2:$AD31,AD31)=1,OrdeUP100(RANK(AD31,$AD$2:$AD$311)),OrdeUP100(RANK(AD31,$AD$2:$AD$311))&" مكرّر "))) -> الثّاني عشر
A32: a31 | B32: 15 | C32: 18 | D32: 33 | E32: جيد | F32: 17 | G32: 9 | H32: 26 | I32: مقبول | J32: 3 | K32: 0 | L32: 3 | M32: دون المستوى | N32: 15 | O32: 11 | P32: 26 | Q32: مقبول | R32: 2 | S32: 16 | T32: 18 | U32: دون المستوى | V32: 7 | W32: 12 | X32: 19 | Y32: دون المستوى | Z32: 15 | AA32: 9 | AB32: 24 | AC32: دون المستوى | AD32: 149 | AE32: دون المستوى | AF32: 0.4257142857 | AG32: =IF(A32="","",IF(AF32="غ","غائب",IF(COUNTIF(AD$2:$AD32,AD32)=1,OrdeUP100(RANK(AD32,$AD$2:$AD$311)),OrdeUP100(RANK(AD32,$AD$2:$AD$311))&" مكرّر "))) -> الثّالث والستون
A33: a32 | B33: 6 | C33: 13 | D33: 19 | E33: دون المستوى | F33: 4 | G33: 14 | H33: 18 | I33: دون المستوى | J33: 1 | K33: 2 | L33: 3 | M33: دون المستوى | N33: 2 | O33: 16 | P33: 18 | Q33: دون المستوى | R33: 2 | S33: 1 | T33: 3 | U33: دون المستوى | V33: 3 | W33: 8 | X33: 11 | Y33: دون المستوى | Z33: 10 | AA33: 19 | AB33: 29 | AC33: مقبول | AD33: 101 | AE33: دون المستوى | AF33: 0.2885714286 | AG33: =IF(A33="","",IF(AF33="غ","غائب",IF(COUNTIF(AD$2:$AD33,AD33)=1,OrdeUP100(RANK(AD33,$AD$2:$AD$311)),OrdeUP100(RANK(AD33,$AD$2:$AD$311))&" مكرّر "))) -> مئتين والثّامن والثّمانون
A34: a33 | B34: 0 | C34: 17 | D34: 17 | E34: دون المستوى | F34: 19 | G34: 4 | H34: 23 | I34: دون المستوى | J34: 9 | K34: 19 | L34: 28 | M34: مقبول | N34: 13 | O34: 0 | P34: 13 | Q34: دون المستوى | R34: 13 | S34: 20 | T34: 33 | U34: جيد | V34: 15 | W34: 1 | X34: 16 | Y34: دون المستوى | Z34: 12 | AA34: 13 | AB34: 25 | AC34: مقبول | AD34: 155 | AE34: دون المستوى | AF34: 0.4428571429 | AG34: =IF(A34="","",IF(AF34="غ","غائب",IF(COUNTIF(AD$2:$AD34,AD34)=1,OrdeUP100(RANK(AD34,$AD$2:$AD$311)),OrdeUP100(RANK(AD34,$AD$2:$AD$311))&" مكرّر "))) -> الثّامن والثّلاثون مكرّر
A35: a34 | B35: 17 | C35: 7 | D35: 24 | E35: دون المستوى | F35: 13 | G35: 8 | H35: 21 | I35: دون المستوى | J35: 16 | K35: 19 | L35: 35 | M35: جيد | N35: 17 | O35: 6 | P35: 23 | Q35: دون المستوى | R35: 16 | S35: 13 | T35: 29 | U35: مقبول | V35: 19 | W35: 10 | X35: 29 | Y35: مقبول | Z35: 15 | AA35: 15 | AB35: 30 | AC35: مقبول | AD35: 191 | AE35: مقبول | AF35: 0.5457142857 | AG35: =IF(A35="","",IF(AF35="غ","غائب",IF(COUNTIF(AD$2:$AD35,AD35)=1,OrdeUP100(RANK(AD35,$AD$2:$AD$311)),OrdeUP100(RANK(AD35,$AD$2:$AD$311))&" مكرّر "))) -> الثّاني مكرّر
A36: a35 | B36: 1 | C36: 7 | D36: 8 | E36: دون المستوى | F36: 6 | G36: 20 | H36: 26 | I36: مقبول | J36: 20 | K36: 3 | L36: 23 | M36: دون المستوى | N36: 9 | O36: 17 | P36: 26 | Q36: مقبول | R36: 11 | S36: 12 | T36: 23 | U36: دون المستوى | V36: 4 | W36: 10 | X36: 14 | Y36: دون المستوى | Z36: 17 | AA36: 2 | AB36: 19 | AC36: دون المستوى | AD36: 139 | AE36: دون المستوى | AF36: 0.3971428571 | AG36: =IF(A36="","",IF(AF36="غ","غائب",IF(COUNTIF(AD$2:$AD36,AD36)=1,OrdeUP100(RANK(AD36,$AD$2:$AD$311)),OrdeUP100(RANK(AD36,$AD$2:$AD$311))&" مكرّر "))) -> مئة والخامس والعشرون
A37: a36 | B37: 16 | C37: 5 | D37: 21 | E37: دون المستوى | F37: 5 | G37: 13 | H37: 18 | I37: دون المستوى | J37: 18 | K37: 7 | L37: 25 | M37: مقبول | N37: 3 | O37: 4 | P37: 7 | Q37: دون المستوى | R37: 7 | S37: 20 | T37: 27 | U37: مقبول | V37: 20 | W37: 11 | X37: 31 | Y37: مقبول | Z37: 3 | AA37: 7 | AB37: 10 | AC37: دون المستوى | AD37: 139 | AE37: دون المستوى | AF37: 0.3971428571 | AG37: =IF(A37="","",IF(AF37="غ","غائب",IF(COUNTIF(AD$2:$AD37,AD37)=1,OrdeUP100(RANK(AD37,$AD$2:$AD$311)),OrdeUP100(RANK(AD37,$AD$2:$AD$311))&" مكرّر "))) -> مئة والخامس والعشرون مكرّر
A38: a37 | B38: 13 | C38: 15 | D38: 28 | E38: مقبول | F38: 4 | G38: 6 | H38: 10 | I38: دون المستوى | J38: 20 | K38: 4 | L38: 24 | M38: دون المستوى | N38: 8 | O38: 8 | P38: 16 | Q38: دون المستوى | R38: 6 | S38: 20 | T38: 26 | U38: مقبول | V38: 16 | W38: 16 | X38: 32 | Y38: مقبول | Z38: 5 | AA38: 2 | AB38: 7 | AC38: دون المستوى | AD38: 143 | AE38: دون المستوى | AF38: 0.4085714286 | AG38: =IF(A38="","",IF(AF38="غ","غائب",IF(COUNTIF(AD$2:$AD38,AD38)=1,OrdeUP100(RANK(AD38,$AD$2:$AD$311)),OrdeUP100(RANK(AD38,$AD$2:$AD$311))&" مكرّر "))) -> الثّامن والتّسعون مكرّر
A39: a38 | B39: 14 | C39: 20 | D39: 34 | E39: جيد | F39: 5 | G39: 10 | H39: 15 | I39: دون المستوى | J39: 11 | K39: 14 | L39: 25 | M39: مقبول | N39: 10 | O39: 16 | P39: 26 | Q39: مقبول | R39: 2 | S39: 17 | T39: 19 | U39: دون المستوى | V39: 8 | W39: 2 | X39: 10 | Y39: دون المستوى | Z39: 16 | AA39: 7 | AB39: 23 | AC39: دون المستوى | AD39: 152 | AE39: دون المستوى | AF39: 0.4342857143 | AG39: =IF(A39="","",IF(AF39="غ","غائب",IF(COUNTIF(AD$2:$AD39,AD39)=1,OrdeUP100(RANK(AD39,$AD$2:$AD$311)),OrdeUP100(RANK(AD39,$AD$2:$AD$311))&" مكرّر "))) -> الثّالث والخمسون
A40: a39 | B40: 5 | C40: 11 | D40: 16 | E40: دون المستوى | F40: 19 | G40: 9 | H40: 28 | I40: مقبول | J40: 3 | K40: 1 | L40: 4 | M40: دون المستوى | N40: 14 | O40: 16 | P40: 30 | Q40: مقبول | R40: 14 | S40: 7 | T40: 21 | U40: دون المستوى | V40: 16 | W40: 1 | X40: 17 | Y40: دون المستوى | Z40: 7 | AA40: 10 | AB40: 17 | AC40: دون المستوى | AD40: 133 | AE40: دون المستوى | AF40: 0.38 | AG40: =IF(A40="","",IF(AF40="غ","غائب",IF(COUNTIF(AD$2:$AD40,AD40)=1,OrdeUP100(RANK(AD40,$AD$2:$AD$311)),OrdeUP100(RANK(AD40,$AD$2:$AD$311))&" مكرّر "))) -> مئة والثّاني والستون
A41: a40 | B41: 19 | C41: 10 | D41: 29 | E41: مقبول | F41: 15 | G41: 8 | H41: 23 | I41: دون المستوى | J41: 10 | K41: 14 | L41: 24 | M41: دون المستوى | N41: 3 | O41: 10 | P41: 13 | Q41: دون المستوى | R41: 10 | S41: 1 | T41: 11 | U41: دون المستوى | V41: 12 | W41: 14 | X41: 26 | Y41: مقبول | Z41: 8 | AA41: 18 | AB41: 26 | AC41: مقبول | AD41: 152 | AE41: دون المستوى | AF41: 0.4342857143 | AG41: =IF(A41="","",IF(AF41="غ","غائب",IF(COUNTIF(AD$2:$AD41,AD41)=1,OrdeUP100(RANK(AD41,$AD$2:$AD$311)),OrdeUP100(RANK(AD41,$AD$2:$AD$311))&" مكرّر "))) -> الثّالث والخمسون مكرّر
A42: a41 | B42: 18 | C42: 9 | D42: =IF(A42="","",IF(AND(B42="غ",C42="غ"),"غ",SUM(B42:C42))) -> 27 | E42: مقبول | F42: 2 | G42: 8 | H42: 10 | I42: دون المستوى | J42: =RANDBETWEEN(0,20) -> 3 | K42: 17 | L42: 20 | M42: دون المستوى | N42: 0 | O42: 14 | P42: 14 | Q42: دون المستوى | R42: 0 | S42: 8 | T42: 8 | U42: دون المستوى | V42: 4 | W42: 4 | X42: 8 | Y42: دون المستوى | Z42: =RANDBETWEEN(0,20) -> 19 | AA42: 8 | AB42: 27 | AC42: مقبول | AD42: 114 | AE42: دون المستوى | AF42: 0.3257142857 | AG42: =IF(A42="","",IF(AF42="غ","غائب",IF(COUNTIF(AD$2:$AD42,AD42)=1,OrdeUP100(RANK(AD42,$AD$2:$AD$311)),OrdeUP100(RANK(AD42,$AD$2:$AD$311))&" مكرّر "))) -> مئتين والسّادس والأربعون
A43: a42 | B43: 7 | C43: 2 | D43: 9 | E43: دون المستوى | F43: 9 | G43: 16 | H43: 25 | I43: مقبول | J43: 19 | K43: 18 | L43: 37 | M43: جيد | N43: 3 | O43: 18 | P43: 21 | Q43: دون المستوى | R43: 4 | S43: 1 | T43: 5 | U43: دون المستوى | V43: 3 | W43: 4 | X43: 7 | Y43: دون المستوى | Z43: 14 | AA43: 6 | AB43: 4 | AC43: دون المستوى | AD43: 108 | AE43: دون المستوى | AF43: 0.3085714286 | AG43: =IF(A43="","",IF(AF43="غ","غائب",IF(COUNTIF(AD$2:$AD43,AD43)=1,OrdeUP100(RANK(AD43,$AD$2:$AD$311)),OrdeUP100(RANK(AD43,$AD$2:$AD$311))&" مكرّر "))) -> مئتين والثّامن والستون
A44: a43 | B44: 19 | C44: 0 | D44: 19 | E44: دون المستوى | F44: 5 | G44: 14 | H44: 19 | I44: دون المستوى | J44: 14 | K44: 2 | L44: 16 | M44: دون المستوى | N44: 5 | O44: 5 | P44: 10 | Q44: دون المستوى | R44: 3 | S44: 12 | T44: 15 | U44: دون المستوى | V44: 3 | W44: 17 | X44: 20 | Y44: دون المستوى | Z44: 11 | AA44: 6 | AB44: 7 | AC44: دون المستوى | AD44: 106 | AE44: دون المستوى | AF44: 0.3028571429 | AG44: =IF(A44="","",IF(AF44="غ","غائب",IF(COUNTIF(AD$2:$AD44,AD44)=1,OrdeUP100(RANK(AD44,$AD$2:$AD$311)),OrdeUP100(RANK(AD44,$AD$2:$AD$311))&" مكرّر "))) -> مئتين والرّابع والسّبعون
A45: a44 | B45: 11 | C45: 16 | D45: 27 | E45: مقبول | F45: 20 | G45: 20 | H45: 40 | I45: جيد جداً | J45: 17 | K45: 12 | L45: 29 | M45: مقبول | N45: 0 | O45: 16 | P45: 16 | Q45: دون المستوى | R45: 16 | S45: 13 | T45: 29 | U45: مقبول | V45: 7 | W45: 0 | X45: 7 | Y45: دون المستوى | Z45: 13 | AA45: 7 | AB45: 5 | AC45: دون المستوى | AD45: 153 | AE45: دون المستوى | AF45: 0.4371428571 | AG45: =IF(A45="","",IF(AF45="غ","غائب",IF(COUNTIF(AD$2:$AD45,AD45)=1,OrdeUP100(RANK(AD45,$AD$2:$AD$311)),OrdeUP100(RANK(AD45,$AD$2:$AD$311))&" مكرّر "))) -> الخمسون
A46: a45 | B46: 18 | C46: 3 | D46: 21 | E46: دون المستوى | F46: 5 | G46: 10 | H46: 15 | I46: دون المستوى | J46: 4 | K46: 2 | L46: 6 | M46: دون المستوى | N46: 2 | O46: 7 | P46: 9 | Q46: دون المستوى | R46: 2 | S46: 2 | T46: 4 | U46: دون المستوى | V46: 7 | W46: 10 | X46: 17 | Y46: دون المستوى | Z46: 2 | AA46: 18 | AB46: 4 | AC46: دون المستوى | AD46: 76 | AE46: دون المستوى | AF46: 0.2171428571 | AG46: =IF(A46="","",IF(AF46="غ","غائب",IF(COUNTIF(AD$2:$AD46,AD46)=1,OrdeUP100(RANK(AD46,$AD$2:$AD$311)),OrdeUP100(RANK(AD46,$AD$2:$AD$311))&" مكرّر "))) -> ثلاثمائة وتسعة
A47: a46 | B47: 11 | C47: 1 | D47: 12 | E47: دون المستوى | F47: 9 | G47: 2 | H47: 11 | I47: دون المستوى | J47: 2 | K47: 17 | L47: 19 | M47: دون المستوى | N47: 4 | O47: 7 | P47: 11 | Q47: دون المستوى | R47: 4 | S47: 6 | T47: 10 | U47: دون المستوى | V47: 11 | W47: 11 | X47: 22 | Y47: دون المستوى | Z47: 2 | AA47: 3 | AB47: 4 | AC47: دون المستوى | AD47: 89 | AE47: دون المستوى | AF47: 0.2542857143 | AG47: =IF(A47="","",IF(AF47="غ","غائب",IF(COUNTIF(AD$2:$AD47,AD47)=1,OrdeUP100(RANK(AD47,$AD$2:$AD$311)),OrdeUP100(RANK(AD47,$AD$2:$AD$311))&" مكرّر "))) -> ثلاثمائة وثلاثة
A48: a47 | B48: 11 | C48: 14 | D48: 25 | E48: مقبول | F48: 4 | G48: 18 | H48: 22 | I48: دون المستوى | J48: 4 | K48: 4 | L48: 8 | M48: دون المستوى | N48: 16 | O48: 3 | P48: 19 | Q48: دون المستوى | R48: 18 | S48: 17 | T48: 35 | U48: جيد | V48: 10 | W48: 14 | X48: 24 | Y48: دون المستوى | Z48: 16 | AA48: 17 | AB48: 6 | AC48: دون المستوى | AD48: 139 | AE48: دون المستوى | AF48: 0.3971428571 | AG48: =IF(A48="","",IF(AF48="غ","غائب",IF(COUNTIF(AD$2:$AD48,AD48)=1,OrdeUP100(RANK(AD48,$AD$2:$AD$311)),OrdeUP100(RANK(AD48,$AD$2:$AD$311))&" مكرّر "))) -> مئة والخامس والعشرون مكرّر
A49: a48 | B49: 1 | C49: 7 | D49: 8 | E49: دون المستوى | F49: 19 | G49: 15 | H49: 34 | I49: جيد | J49: 14 | K49: 8 | L49: 22 | M49: دون المستوى | N49: 15 | O49: 5 | P49: 20 | Q49: دون المستوى | R49: 7 | S49: 12 | T49: 19 | U49: دون المستوى | V49: 17 | W49: 4 | X49: 21 | Y49: دون المستوى | Z49: 14 | AA49: 0 | AB49: 13 | AC49: دون المستوى | AD49: 137 | AE49: دون المستوى | AF49: 0.3914285714 | AG49: =IF(A49="","",IF(AF49="غ","غائب",IF(COUNTIF(AD$2:$AD49,AD49)=1,OrdeUP100(RANK(AD49,$AD$2:$AD$311)),OrdeUP100(RANK(AD49,$AD$2:$AD$311))&" مكرّر "))) -> مئة والحادي والأربعون مكرّر
A50: a49 | B50: 4 | C50: 10 | D50: 14 | E50: دون المستوى | F50: 5 | G50: 1 | H50: 6 | I50: دون المستوى | J50: 0 | K50: 7 | L50: 7 | M50: دون المستوى | N50: 12 | O50: 20 | P50: 32 | Q50: مقبول | R50: 4 | S50: 8 | T50: 12 | U50: دون المستوى | V50: 19 | W50: 5 | X50: 24 | Y50: دون المستوى | Z50: 12 | AA50: 15 | AB50: 8 | AC50: دون المستوى | AD50: 103 | AE50: دون المستوى | AF50: 0.2942857143 | AG50: =IF(A50="","",IF(AF50="غ","غائب",IF(COUNTIF(AD$2:$AD50,AD50)=1,OrdeUP100(RANK(AD50,$AD$2:$AD$311)),OrdeUP100(RANK(AD50,$AD$2:$AD$311))&" مكرّر "))) -> مئتين والثّمانون مكرّر
A51: a50 | B51: 16 | C51: 1 | D51: 17 | E51: دون المستوى | F51: 8 | G51: 1 | H51: 9 | I51: دون المستوى | J51: 4 | K51: 9 | L51: 13 | M51: دون المستوى | N51: 15 | O51: 0 | P51: 15 | Q51: دون المستوى | R51: 16 | S51: 1 | T51: 17 | U51: دون المستوى | V51: 11 | W51: 19 | X51: 30 | Y51: مقبول | Z51: 17 | AA51: 14 | AB51: 4 | AC51: دون المستوى | AD51: 105 | AE51: دون المستوى | AF51: 0.3 | AG51: =IF(A51="","",IF(AF51="غ","غائب",IF(COUNTIF(AD$2:$AD51,AD51)=1,OrdeUP100(RANK(AD51,$AD$2:$AD$311)),OrdeUP100(RANK(AD51,$AD$2:$AD$311))&" مكرّر "))) -> مئتين والسّادس والسّبعون
A52: a51 | B52: 16 | C52: 11 | D52: 27 | E52: مقبول | F52: 5 | G52: 11 | H52: 16 | I52: دون المستوى | J52: 9 | K52: 19 | L52: 28 | M52: مقبول | N52: 19 | O52: 4 | P52: 23 | Q52: دون المستوى | R52: 14 | S52: 10 | T52: 24 | U52: دون المستوى | V52: 10 | W52: 8 | X52: 18 | Y52: دون المستوى | Z52: 8 | AA52: 19 | AB52: 18 | AC52: دون المستوى | AD52: 154 | AE52: دون المستوى | AF52: 0.44 | AG52: =IF(A52="","",IF(AF52="غ","غائب",IF(COUNTIF(AD$2:$AD52,AD52)=1,OrdeUP100(RANK(AD52,$AD$2:$AD$311)),OrdeUP100(RANK(AD52,$AD$2:$AD$311))&" مكرّر "))) -> الرّابع والأربعون
A53: a52 | B53: 10 | C53: 11 | D53: 21 | E53: دون المستوى | F53: 13 | G53: 8 | H53: 21 | I53: دون المستوى | J53: 5 | K53: 14 | L53: 19 | M53: دون المستوى | N53: 19 | O53: 13 | P53: 32 | Q53: مقبول | R53: 1 | S53: 15 | T53: 16 | U53: دون المستوى | V53: 13 | W53: 9 | X53: 22 | Y53: دون المستوى | Z53: 6 | AA53: 8 | AB53: 19 | AC53: دون المستوى | AD53: 150 | AE53: دون المستوى | AF53: 0.4285714286 | AG53: =IF(A53="","",IF(AF53="غ","غائب",IF(COUNTIF(AD$2:$AD53,AD53)=1,OrdeUP100(RANK(AD53,$AD$2:$AD$311)),OrdeUP100(RANK(AD53,$AD$2:$AD$311))&" مكرّر "))) -> الستون
A54: a53 | B54: 15 | C54: 18 | D54: 33 | E54: جيد | F54: 3 | G54: 7 | H54: 10 | I54: دون المستوى | J54: 12 | K54: 2 | L54: 14 | M54: دون المستوى | N54: 19 | O54: 19 | P54: 38 | Q54: جيد جداً | R54: 13 | S54: 9 | T54: 22 | U54: دون المستوى | V54: 10 | W54: 5 | X54: 15 | Y54: دون المستوى | Z54: 8 | AA54: 16 | AB54: 2 | AC54: دون المستوى | AD54: 134 | AE54: دون المستوى | AF54: 0.3828571429 | AG54: =IF(A54="","",IF(AF54="غ","غائب",IF(COUNTIF(AD$2:$AD54,AD54)=1,OrdeUP100(RANK(AD54,$AD$2:$AD$311)),OrdeUP100(RANK(AD54,$AD$2:$AD$311))&" مكرّر "))) -> مئة والسّادس والخمسون مكرّر
A55: a54 | B55: 2 | C55: 20 | D55: 22 | E55: دون المستوى | F55: 13 | G55: 5 | H55: 18 | I55: دون المستوى | J55: 1 | K55: 8 | L55: 9 | M55: دون المستوى | N55: 11 | O55: 2 | P55: 13 | Q55: دون المستوى | R55: 6 | S55: 15 | T55: 21 | U55: دون المستوى | V55: 0 | W55: 14 | X55: 14 | Y55: دون المستوى | Z55: 16 | AA55: 20 | AB55: 16 | AC55: دون المستوى | AD55: 113 | AE55: دون المستوى | AF55: 0.3228571429 | AG55: =IF(A55="","",IF(AF55="غ","غائب",IF(COUNTIF(AD$2:$AD55,AD55)=1,OrdeUP100(RANK(AD55,$AD$2:$AD$311)),OrdeUP100(RANK(AD55,$AD$2:$AD$311))&" مكرّر "))) -> مئتين والحادي والخمسون
A56: a55 | B56: 19 | C56: 5 | D56: 24 | E56: دون المستوى | F56: 16 | G56: 3 | H56: 19 | I56: دون المستوى | J56: 11 | K56: 14 | L56: 25 | M56: مقبول | N56: 20 | O56: 13 | P56: 33 | Q56: جيد | R56: 16 | S56: 11 | T56: 27 | U56: مقبول | V56: 18 | W56: 11 | X56: 29 | Y56: مقبول | Z56: 8 | AA56: 13 | AB56: 2 | AC56: دون المستوى | AD56: 159 | AE56: دون المستوى | AF56: 0.4542857143 | AG56: =IF(A56="","",IF(AF56="غ","غائب",IF(COUNTIF(AD$2:$AD56,AD56)=1,OrdeUP100(RANK(AD56,$AD$2:$AD$311)),OrdeUP100(RANK(AD56,$AD$2:$AD$311))&" مكرّر "))) -> الحادي والثّلاثون مكرّر
A57: a56 | B57: 1 | C57: 9 | D57: 10 | E57: دون المستوى | F57: 15 | G57: 8 | H57: 23 | I57: دون المستوى | J57: 15 | K57: 10 | L57: 25 | M57: مقبول | N57: 6 | O57: 12 | P57: 18 | Q57: دون المستوى | R57: 10 | S57: 17 | T57: 27 | U57: مقبول | V57: 13 | W57: 16 | X57: 29 | Y57: مقبول | Z57: 3 | AA57: 11 | AB57: 4 | AC57: دون المستوى | AD57: 136 | AE57: دون المستوى | AF57: 0.3885714286 | AG57: =IF(A57="","",IF(AF57="غ","غائب",IF(COUNTIF(AD$2:$AD57,AD57)=1,OrdeUP100(RANK(AD57,$AD$2:$AD$311)),OrdeUP100(RANK(AD57,$AD$2:$AD$311))&" مكرّر "))) -> مئة والتّاسع والأربعون
A58: a57 | B58: 15 | C58: 2 | D58: 17 | E58: دون المستوى | F58: 5 | G58: 6 | H58: 11 | I58: دون المستوى | J58: 1 | K58: 2 | L58: 3 | M58: دون المستوى | N58: 16 | O58: 10 | P58: 26 | Q58: مقبول | R58: 9 | S58: 6 | T58: 15 | U58: دون المستوى | V58: 11 | W58: 17 | X58: 28 | Y58: مقبول | Z58: 8 | AA58: 10 | AB58: 4 | AC58: دون المستوى | AD58: 104 | AE58: دون المستوى | AF58: 0.2971428571 | AG58: =IF(A58="","",IF(AF58="غ","غائب",IF(COUNTIF(AD$2:$AD58,AD58)=1,OrdeUP100(RANK(AD58,$AD$2:$AD$311)),OrdeUP100(RANK(AD58,$AD$2:$AD$311))&" مكرّر "))) -> مئتين والثّامن والسّبعون
A59: a58 | B59: 14 | C59: 0 | D59: 14 | E59: دون المستوى | F59: 20 | G59: 13 | H59: 33 | I59: جيد | J59: 2 | K59: 13 | L59: 15 | M59: دون المستوى | N59: 9 | O59: 4 | P59: 13 | Q59: دون المستوى | R59: 9 | S59: 0 | T59: 9 | U59: دون المستوى | V59: 11 | W59: 5 | X59: 16 | Y59: دون المستوى | Z59: 16 | AA59: 7 | AB59: 9 | AC59: دون المستوى | AD59: 109 | AE59: دون المستوى | AF59: 0.3114285714 | AG59: =IF(A59="","",IF(AF59="غ","غائب",IF(COUNTIF(AD$2:$AD59,AD59)=1,OrdeUP100(RANK(AD59,$AD$2:$AD$311)),OrdeUP100(RANK(AD59,$AD$2:$AD$311))&" مكرّر "))) -> مئتين والخامس والستون
A60: a59 | B60: 9 | C60: 19 | D60: 28 | E60: مقبول | F60: 11 | G60: 11 | H60: 22 | I60: دون المستوى | J60: 2 | K60: 8 | L60: 10 | M60: دون المستوى | N60: 10 | O60: 16 | P60: 26 | Q60: مقبول | R60: 0 | S60: 15 | T60: 15 | U60: دون المستوى | V60: 17 | W60: 7 | X60: 24 | Y60: دون المستوى | Z60: 5 | AA60: 10 | AB60: 13 | AC60: دون المستوى | AD60: 138 | AE60: دون المستوى | AF60: 0.3942857143 | AG60: =IF(A60="","",IF(AF60="غ","غائب",IF(COUNTIF(AD$2:$AD60,AD60)=1,OrdeUP100(RANK(AD60,$AD$2:$AD$311)),OrdeUP100(RANK(AD60,$AD$2:$AD$311))&" مكرّر "))) -> مئة والسّابع والثّلاثون مكرّر
A61: a60 | B61: 18 | C61: 18 | D61: 36 | E61: جيد | F61: 10 | G61: 6 | H61: 16 | I61: دون المستوى | J61: 1 | K61: 13 | L61: 14 | M61: دون المستوى | N61: 5 | O61: 1 | P61: 6 | Q61: دون المستوى | R61: 7 | S61: 7 | T61: 14 | U61: دون المستوى | V61: 4 | W61: 0 | X61: 4 | Y61: دون المستوى | Z61: 20 | AA61: 15 | AB61: 8 | AC61: دون المستوى | AD61: 98 | AE61: دون المستوى | AF61: 0.28 | AG61: =IF(A61="","",IF(AF61="غ","غائب",IF(COUNTIF(AD$2:$AD61,AD61)=1,OrdeUP100(RANK(AD61,$AD$2:$AD$311)),OrdeUP100(RANK(AD61,$AD$2:$AD$311))&" مكرّر "))) -> مئتين والخامس والتّسعون
A62: a61 | B62: 12 | C62: 13 | D62: 25 | E62: مقبول | F62: 4 | G62: 6 | H62: 10 | I62: دون المستوى | J62: 16 | K62: 9 | L62: 25 | M62: مقبول | N62: 2 | O62: 6 | P62: 8 | Q62: دون المستوى | R62: 5 | S62: 13 | T62: 18 | U62: دون المستوى | V62: 3 | W62: 17 | X62: 20 | Y62: دون المستوى | Z62: =RANDBETWEEN(0,20) -> 3 | AA62: 19 | AB62: 18 | AC62: دون المستوى | AD62: 124 | AE62: دون المستوى | AF62: 0.3542857143 | AG62: =IF(A62="","",IF(AF62="غ","غائب",IF(COUNTIF(AD$2:$AD62,AD62)=1,OrdeUP100(RANK(AD62,$AD$2:$AD$311)),OrdeUP100(RANK(AD62,$AD$2:$AD$311))&" مكرّر "))) -> مئتين وسبعة مكرّر
A63: a62 | B63: 11 | C63: 3 | D63: 14 | E63: دون المستوى | F63: 15 | G63: 11 | H63: 26 | I63: مقبول | J63: 11 | K63: 15 | L63: 26 | M63: مقبول | N63: 1 | O63: 5 | P63: 6 | Q63: دون المستوى | R63: 3 | S63: 11 | T63: 14 | U63: دون المستوى | V63: 10 | W63: 13 | X63: 23 | Y63: دون المستوى | Z63: 9 | AA63: 9 | AB63: 7 | AC63: دون المستوى | AD63: 116 | AE63: دون المستوى | AF63: 0.3314285714 | AG63: =IF(A63="","",IF(AF63="غ","غائب",IF(COUNTIF(AD$2:$AD63,AD63)=1,OrdeUP100(RANK(AD63,$AD$2:$AD$311)),OrdeUP100(RANK(AD63,$AD$2:$AD$311))&" مكرّر "))) -> مئتين والثّاني والأربعون مكرّر
A64: a63 | B64: 13 | C64: 6 | D64: 19 | E64: دون المستوى | F64: 10 | G64: 17 | H64: 27 | I64: مقبول | J64: 1 | K64: 17 | L64: 18 | M64: دون المستوى | N64: 1 | O64: 15 | P64: 16 | Q64: دون المستوى | R64: 20 | S64: 18 | T64: 38 | U64: جيد جداً | V64: 3 | W64: 16 | X64: 19 | Y64: دون المستوى | Z64: 8 | AA64: 8 | AB64: 2 | AC64: دون المستوى | AD64: 139 | AE64: دون المستوى | AF64: 0.3971428571 | AG64: =IF(A64="","",IF(AF64="غ","غائب",IF(COUNTIF(AD$2:$AD64,AD64)=1,OrdeUP100(RANK(AD64,$AD$2:$AD$311)),OrdeUP100(RANK(AD64,$AD$2:$AD$311))&" مكرّر "))) -> مئة والخامس والعشرون مكرّر
A65: a64 | B65: 18 | C65: 2 | D65: 20 | E65: دون المستوى | F65: 19 | G65: 19 | H65: 38 | I65: جيد جداً | J65: 12 | K65: 2 | L65: 14 | M65: دون المستوى | N65: 18 | O65: 6 | P65: 24 | Q65: دون المستوى | R65: 12 | S65: 14 | T65: 26 | U65: مقبول | V65: 8 | W65: 2 | X65: 10 | Y65: دون المستوى | Z65: 16 | AA65: 4 | AB65: 13 | AC65: دون المستوى | AD65: 145 | AE65: دون المستوى | AF65: 0.4142857143 | AG65: =IF(A65="","",IF(AF65="غ","غائب",IF(COUNTIF(AD$2:$AD65,AD65)=1,OrdeUP100(RANK(AD65,$AD$2:$AD$311)),OrdeUP100(RANK(AD65,$AD$2:$AD$311))&" مكرّر "))) -> التّاسع والثّمانون مكرّر
A66: a65 | B66: 14 | C66: 16 | D66: 30 | E66: =IF(D66="","",VLOOKUP(D66,تقدير,2,1)) -> مقبول | F66: 16 | G66: 10 | H66: 26 | I66: =IF(H66="","",VLOOKUP(H66,تقدير,2,1)) -> مقبول | J66: 5 | K66: 13 | L66: 18 | M66: =IF(L66="","",VLOOKUP(L66,تقدير,2,1)) -> دون المستوى | N66: 20 | O66: 11 | P66: 31 | Q66: =IF(P66="","",VLOOKUP(P66,تقدير,2,1)) -> مقبول | R66: 2 | S66: 0 | T66: 2 | U66: =IF(T66="","",VLOOKUP(T66,تقدير,2,1)) -> دون المستوى | V66: 15 | W66: 10 | X66: 25 | Y66: =IF(X66="","",VLOOKUP(X66,تقدير,2,1)) -> مقبول | Z66: 9 | AA66: 10 | AB66: 12 | AC66: =IF(AB66="","",VLOOKUP(AB66,تقدير,2,1)) -> دون المستوى | AD66: 144 | AE66: =IF(A66="","",IF(AD66="","",IF(AD66="غ","غائب",VLOOKUP((AD66/350)*100/(2),تقدير,2,1)))) -> دون المستوى | AF66: 0.4114285714 | AG66: =IF(A66="","",IF(AF66="غ","غائب",IF(COUNTIF(AD$2:$AD66,AD66)=1,OrdeUP100(RANK(AD66,$AD$2:$AD$311)),OrdeUP100(RANK(AD66,$AD$2:$AD$311))&" مكرّر "))) -> الثّاني والتّسعون
A67: a66 | B67: 16 | C67: 5 | D67: 21 | E67: دون المستوى | F67: 5 | G67: 11 | H67: =IF(A67="","",IF(AND(F67="غ",G67="غ"),"غ",SUM(F67:G67))) -> 16 | I67: دون المستوى | J67: 15 | K67: 8 | L67: =IF(A67="","",IF(AND(J67="غ",K67="غ"),"غ",SUM(J67:K67))) -> 23 | M67: دون المستوى | N67: 11 | O67: 15 | P67: =IF(A67="","",IF(AND(N67="غ",O67="غ"),"غ",SUM(N67:O67))) -> 26 | Q67: مقبول | R67: 5 | S67: 1 | T67: =IF(A67="","",IF(AND(R67="غ",S67="غ"),"غ",SUM(R67:S67))) -> 6 | U67: دون المستوى | V67: 12 | W67: 16 | X67: =IF(A67="","",IF(AND(V67="غ",W67="غ"),"غ",SUM(V67:W67))) -> 28 | Y67: مقبول | Z67: 9 | AA67: 3 | AB67: 12 | AC67: دون المستوى | AD67: =IF(A67="","",IF(AND(D67="غ",H67="غ",L67="غ",P67="غ",T67="غ",X67="غ",AB67="غ"),"غ",SUM(D67,H67,L67,P67,T67,X67,AB67))) -> 132 | AE67: دون المستوى | AF67: =IF(A67="","",IF(AD67="غ","غ",AD67/350)) -> 0.3771428571 | AG67: =IF(A67="","",IF(AF67="غ","غائب",IF(COUNTIF(AD$2:$AD67,AD67)=1,OrdeUP100(RANK(AD67,$AD$2:$AD$311)),OrdeUP100(RANK(AD67,$AD$2:$AD$311))&" مكرّر "))) -> مئة والتّاسع والستون
A68: a67 | B68: 8 | C68: 14 | D68: 22 | E68: دون المستوى | F68: 13 | G68: 3 | H68: 16 | I68: دون المستوى | J68: 17 | K68: 18 | L68: 35 | M68: جيد | N68: 9 | O68: 8 | P68: 17 | Q68: دون المستوى | R68: 3 | S68: 1 | T68: 4 | U68: دون المستوى | V68: 13 | W68: 8 | X68: 21 | Y68: دون المستوى | Z68: 14 | AA68: 12 | AB68: 7 | AC68: دون المستوى | AD68: 122 | AE68: دون المستوى | AF68: 0.3485714286 | AG68: =IF(A68="","",IF(AF68="غ","غائب",IF(COUNTIF(AD$2:$AD68,AD68)=1,OrdeUP100(RANK(AD68,$AD$2:$AD$311)),OrdeUP100(RANK(AD68,$AD$2:$AD$311))&" مكرّر "))) -> مئتين والسّابع عشر
A69: a68 | B69: 15 | C69: 0 | D69: 15 | E69: دون المستوى | F69: 14 | G69: 20 | H69: 34 | I69: جيد | J69: 17 | K69: 6 | L69: 23 | M69: دون المستوى | N69: 10 | O69: 14 | P69: 24 | Q69: دون المستوى | R69: 0 | S69: 7 | T69: 7 | U69: دون المستوى | V69: 1 | W69: 8 | X69: 9 | Y69: دون المستوى | Z69: 12 | AA69: 1 | AB69: 2 | AC69: دون المستوى | AD69: 114 | AE69: دون المستوى | AF69: 0.3257142857 | AG69: =IF(A69="","",IF(AF69="غ","غائب",IF(COUNTIF(AD$2:$AD69,AD69)=1,OrdeUP100(RANK(AD69,$AD$2:$AD$311)),OrdeUP100(RANK(AD69,$AD$2:$AD$311))&" مكرّر "))) -> مئتين والسّادس والأربعون مكرّر
A70: a69 | B70: 0 | C70: 2 | D70: 2 | E70: دون المستوى | F70: 14 | G70: 9 | H70: 23 | I70: دون المستوى | J70: 11 | K70: 12 | L70: 23 | M70: دون المستوى | N70: 1 | O70: 6 | P70: 7 | Q70: دون المستوى | R70: 1 | S70: 7 | T70: 8 | U70: دون المستوى | V70: 8 | W70: 8 | X70: 16 | Y70: دون المستوى | Z70: 14 | AA70: 16 | AB70: 0 | AC70: دون المستوى | AD70: 79 | AE70: دون المستوى | AF70: 0.2257142857 | AG70: =IF(A70="","",IF(AF70="غ","غائب",IF(COUNTIF(AD$2:$AD70,AD70)=1,OrdeUP100(RANK(AD70,$AD$2:$AD$311)),OrdeUP100(RANK(AD70,$AD$2:$AD$311))&" مكرّر "))) -> ثلاثمائة وثمانية
A71: a70 | B71: 14 | C71: 6 | D71: 20 | E71: دون المستوى | F71: 19 | G71: 1 | H71: 20 | I71: دون المستوى | J71: 13 | K71: 0 | L71: 13 | M71: دون المستوى | N71: 0 | O71: 4 | P71: 4 | Q71: دون المستوى | R71: 8 | S71: 19 | T71: 27 | U71: مقبول | V71: 6 | W71: 5 | X71: 11 | Y71: دون المستوى | Z71: 18 | AA71: 5 | AB71: 0 | AC71: دون المستوى | AD71: 95 | AE71: دون المستوى | AF71: 0.2714285714 | AG71: =IF(A71="","",IF(AF71="غ","غائب",IF(COUNTIF(AD$2:$AD71,AD71)=1,OrdeUP100(RANK(AD71,$AD$2:$AD$311)),OrdeUP100(RANK(AD71,$AD$2:$AD$311))&" مكرّر "))) -> ثلاثمائة وواحد
A72: a71 | B72: 17 | C72: 6 | D72: 23 | E72: دون المستوى | F72: 2 | G72: 9 | H72: 11 | I72: دون المستوى | J72: 7 | K72: 10 | L72: 17 | M72: دون المستوى | N72: 11 | O72: 1 | P72: 12 | Q72: دون المستوى | R72: 10 | S72: 18 | T72: 28 | U72: مقبول | V72: 16 | W72: 1 | X72: 17 | Y72: دون المستوى | Z72: 13 | AA72: 16 | AB72: 2 | AC72: دون المستوى | AD72: 110 | AE72: دون المستوى | AF72: 0.3142857143 | AG72: =IF(A72="","",IF(AF72="غ","غائب",IF(COUNTIF(AD$2:$AD72,AD72)=1,OrdeUP100(RANK(AD72,$AD$2:$AD$311)),OrdeUP100(RANK(AD72,$AD$2:$AD$311))&" مكرّر "))) -> مئتين والثّاني والستون
A73: a72 | B73: 3 | C73: 16 | D73: 19 | E73: دون المستوى | F73: 4 | G73: 20 | H73: 24 | I73: دون المستوى | J73: 12 | K73: 15 | L73: 27 | M73: مقبول | N73: 4 | O73: 1 | P73: 5 | Q73: دون المستوى | R73: 11 | S73: 12 | T73: 23 | U73: دون المستوى | V73: 4 | W73: 8 | X73: 12 | Y73: دون المستوى | Z73: 19 | AA73: 13 | AB73: 2 | AC73: دون المستوى | AD73: 112 | AE73: دون المستوى | AF73: 0.32 | AG73: =IF(A73="","",IF(AF73="غ","غائب",IF(COUNTIF(AD$2:$AD73,AD73)=1,OrdeUP100(RANK(AD73,$AD$2:$AD$311)),OrdeUP100(RANK(AD73,$AD$2:$AD$311))&" مكرّر "))) -> مئتين والخامس والخمسون
A74: a73 | B74: 17 | C74: 17 | D74: 34 | E74: جيد | F74: 1 | G74: 18 | H74: 19 | I74: دون المستوى | J74: 16 | K74: 5 | L74: 21 | M74: دون المستوى | N74: 20 | O74: 11 | P74: 31 | Q74: مقبول | R74: 10 | S74: 14 | T74: 24 | U74: دون المستوى | V74: 6 | W74: 4 | X74: 10 | Y74: دون المستوى | Z74: 8 | AA74: 2 | AB74: 5 | AC74: دون المستوى | AD74: 144 | AE74: دون المستوى | AF74: 0.4114285714 | AG74: =IF(A74="","",IF(AF74="غ","غائب",IF(COUNTIF(AD$2:$AD74,AD74)=1,OrdeUP100(RANK(AD74,$AD$2:$AD$311)),OrdeUP100(RANK(AD74,$AD$2:$AD$311))&" مكرّر "))) -> الثّاني والتّسعون مكرّر
A75: a74 | B75: 10 | C75: 9 | D75: 19 | E75: دون المستوى | F75: 9 | G75: 11 | H75: 20 | I75: دون المستوى | J75: 11 | K75: 3 | L75: 14 | M75: دون المستوى | N75: 15 | O75: 9 | P75: 24 | Q75: دون المستوى | R75: 17 | S75: 10 | T75: 27 | U75: مقبول | V75: 6 | W75: 20 | X75: 26 | Y75: مقبول | Z75: 18 | AA75: 0 | AB75: 7 | AC75: دون المستوى | AD75: 137 | AE75: دون المستوى | AF75: 0.3914285714 | AG75: =IF(A75="","",IF(AF75="غ","غائب",IF(COUNTIF(AD$2:$AD75,AD75)=1,OrdeUP100(RANK(AD75,$AD$2:$AD$311)),OrdeUP100(RANK(AD75,$AD$2:$AD$311))&" مكرّر "))) -> مئة والحادي والأربعون مكرّر
A76: a75 | B76: 19 | C76: 11 | D76: 30 | E76: مقبول | F76: 9 | G76: 7 | H76: 16 | I76: دون المستوى | J76: 16 | K76: 1 | L76: 17 | M76: دون المستوى | N76: 13 | O76: 4 | P76: 17 | Q76: دون المستوى | R76: 6 | S76: 15 | T76: 21 | U76: دون المستوى | V76: 19 | W76: 17 | X76: 36 | Y76: جيد | Z76: 13 | AA76: 15 | AB76: 3 | AC76: دون المستوى | AD76: 140 | AE76: دون المستوى | AF76: 0.4 | AG76: =IF(A76="","",IF(AF76="غ","غائب",IF(COUNTIF(AD$2:$AD76,AD76)=1,OrdeUP100(RANK(AD76,$AD$2:$AD$311)),OrdeUP100(RANK(AD76,$AD$2:$AD$311))&" مكرّر "))) -> مئة والثّامن عشر
A77: a76 | B77: 20 | C77: 20 | D77: 40 | E77: جيد جداً | F77: 16 | G77: 5 | H77: 21 | I77: دون المستوى | J77: 19 | K77: 20 | L77: 39 | M77: جيد جداً | N77: 19 | O77: 0 | P77: 19 | Q77: دون المستوى | R77: 18 | S77: 19 | T77: 37 | U77: جيد | V77: 12 | W77: 6 | X77: 18 | Y77: دون المستوى | Z77: 14 | AA77: 5 | AB77: 13 | AC77: دون المستوى | AD77: 187 | AE77: مقبول | AF77: 0.5342857143 | AG77: =IF(A77="","",IF(AF77="غ","غائب",IF(COUNTIF(AD$2:$AD77,AD77)=1,OrdeUP100(RANK(AD77,$AD$2:$AD$311)),OrdeUP100(RANK(AD77,$AD$2:$AD$311))&" مكرّر "))) -> الرّابع
A78: a77 | B78: 18 | C78: 9 | D78: 27 | E78: مقبول | F78: 13 | G78: 10 | H78: 23 | I78: دون المستوى | J78: 14 | K78: 20 | L78: 34 | M78: جيد | N78: 15 | O78: 3 | P78: 18 | Q78: دون المستوى | R78: 8 | S78: 17 | T78: 25 | U78: مقبول | V78: 1 | W78: 16 | X78: 17 | Y78: دون المستوى | Z78: 16 | AA78: 18 | AB78: 15 | AC78: دون المستوى | AD78: 159 | AE78: دون المستوى | AF78: 0.4542857143 | AG78: =IF(A78="","",IF(AF78="غ","غائب",IF(COUNTIF(AD$2:$AD78,AD78)=1,OrdeUP100(RANK(AD78,$AD$2:$AD$311)),OrdeUP100(RANK(AD78,$AD$2:$AD$311))&" مكرّر "))) -> الحادي والثّلاثون مكرّر
A79: a78 | B79: 19 | C79: 17 | D79: 36 | E79: جيد | F79: 3 | G79: 16 | H79: 19 | I79: دون المستوى | J79: 8 | K79: 19 | L79: 27 | M79: مقبول | N79: 13 | O79: 17 | P79: 30 | Q79: مقبول | R79: 10 | S79: 7 | T79: 17 | U79: دون المستوى | V79: 1 | W79: 8 | X79: 9 | Y79: دون المستوى | Z79: 8 | AA79: 11 | AB79: 3 | AC79: دون المستوى | AD79: 141 | AE79: دون المستوى | AF79: 0.4028571429 | AG79: =IF(A79="","",IF(AF79="غ","غائب",IF(COUNTIF(AD$2:$AD79,AD79)=1,OrdeUP100(RANK(AD79,$AD$2:$AD$311)),OrdeUP100(RANK(AD79,$AD$2:$AD$311))&" مكرّر "))) -> مئة والثّاني عشر
A80: a79 | B80: 12 | C80: 12 | D80: 24 | E80: دون المستوى | F80: 18 | G80: 2 | H80: 20 | I80: دون المستوى | J80: 19 | K80: 19 | L80: 38 | M80: جيد جداً | N80: 17 | O80: 9 | P80: 26 | Q80: مقبول | R80: 3 | S80: 15 | T80: 18 | U80: دون المستوى | V80: 13 | W80: 7 | X80: 20 | Y80: دون المستوى | Z80: 14 | AA80: 4 | AB80: 11 | AC80: دون المستوى | AD80: 157 | AE80: دون المستوى | AF80: 0.4485714286 | AG80: =IF(A80="","",IF(AF80="غ","غائب",IF(COUNTIF(AD$2:$AD80,AD80)=1,OrdeUP100(RANK(AD80,$AD$2:$AD$311)),OrdeUP100(RANK(AD80,$AD$2:$AD$311))&" مكرّر "))) -> الرّابع والثّلاثون
A81: a80 | B81: 6 | C81: 16 | D81: 22 | E81: دون المستوى | F81: 3 | G81: 19 | H81: 22 | I81: دون المستوى | J81: 4 | K81: 4 | L81: 8 | M81: دون المستوى | N81: 11 | O81: 8 | P81: 19 | Q81: دون المستوى | R81: 3 | S81: 11 | T81: 14 | U81: دون المستوى | V81: 5 | W81: 13 | X81: 18 | Y81: دون المستوى | Z81: 13 | AA81: 18 | AB81: 15 | AC81: دون المستوى | AD81: 118 | AE81: دون المستوى | AF81: 0.3371428571 | AG81: =IF(A81="","",IF(AF81="غ","غائب",IF(COUNTIF(AD$2:$AD81,AD81)=1,OrdeUP100(RANK(AD81,$AD$2:$AD$311)),OrdeUP100(RANK(AD81,$AD$2:$AD$311))&" مكرّر "))) -> مئتين والثّاني والثّلاثون
A82: a81 | B82: 8 | C82: 5 | D82: 13 | E82: دون المستوى | F82: 2 | G82: 9 | H82: 11 | I82: دون المستوى | J82: 16 | K82: 3 | L82: 19 | M82: دون المستوى | N82: 0 | O82: 5 | P82: 5 | Q82: دون المستوى | R82: 9 | S82: 15 | T82: 24 | U82: دون المستوى | V82: 3 | W82: 15 | X82: 18 | Y82: دون المستوى | Z82: =RANDBETWEEN(0,20) -> 18 | AA82: 6 | AB82: 10 | AC82: دون المستوى | AD82: 100 | AE82: دون المستوى | AF82: 0.2857142857 | AG82: =IF(A82="","",IF(AF82="غ","غائب",IF(COUNTIF(AD$2:$AD82,AD82)=1,OrdeUP100(RANK(AD82,$AD$2:$AD$311)),OrdeUP100(RANK(AD82,$AD$2:$AD$311))&" مكرّر "))) -> مئتين والتّاسع والثّمانون
A83: a82 | B83: 13 | C83: 9 | D83: 22 | E83: دون المستوى | F83: 11 | G83: 19 | H83: 30 | I83: مقبول | J83: 1 | K83: 4 | L83: 5 | M83: دون المستوى | N83: 16 | O83: 1 | P83: 17 | Q83: دون المستوى | R83: 20 | S83: 2 | T83: 22 | U83: دون المستوى | V83: 2 | W83: 2 | X83: 4 | Y83: دون المستوى | Z83: 20 | AA83: 17 | AB83: 10 | AC83: دون المستوى | AD83: 110 | AE83: دون المستوى | AF83: 0.3142857143 | AG83: =IF(A83="","",IF(AF83="غ","غائب",IF(COUNTIF(AD$2:$AD83,AD83)=1,OrdeUP100(RANK(AD83,$AD$2:$AD$311)),OrdeUP100(RANK(AD83,$AD$2:$AD$311))&" مكرّر "))) -> مئتين والثّاني والستون مكرّر
A84: a83 | B84: 12 | C84: 13 | D84: 25 | E84: مقبول | F84: 2 | G84: 13 | H84: 15 | I84: دون المستوى | J84: 2 | K84: 20 | L84: 22 | M84: دون المستوى | N84: 5 | O84: 8 | P84: 13 | Q84: دون المستوى | R84: 2 | S84: 17 | T84: 19 | U84: دون المستوى | V84: 6 | W84: 2 | X84: 8 | Y84: دون المستوى | Z84: 17 | AA84: 16 | AB84: 0 | AC84: دون المستوى | AD84: 102 | AE84: دون المستوى | AF84: 0.2914285714 | AG84: =IF(A84="","",IF(AF84="غ","غائب",IF(COUNTIF(AD$2:$AD84,AD84)=1,OrdeUP100(RANK(AD84,$AD$2:$AD$311)),OrdeUP100(RANK(AD84,$AD$2:$AD$311))&" مكرّر "))) -> مئتين والسّادس والثّمانون
A85: a84 | B85: 3 | C85: 18 | D85: 21 | E85: دون المستوى | F85: 1 | G85: 16 | H85: 17 | I85: دون المستوى | J85: 0 | K85: 20 | L85: 20 | M85: دون المستوى | N85: 17 | O85: 13 | P85: 30 | Q85: مقبول | R85: 4 | S85: 19 | T85: 23 | U85: دون المستوى | V85: 18 | W85: 20 | X85: 38 | Y85: جيد جداً | Z85: 9 | AA85: 9 | AB85: 3 | AC85: دون المستوى | AD85: 152 | AE85: دون المستوى | AF85: 0.4342857143 | AG85: =IF(A85="","",IF(AF85="غ","غائب",IF(COUNTIF(AD$2:$AD85,AD85)=1,OrdeUP100(RANK(AD85,$AD$2:$AD$311)),OrdeUP100(RANK(AD85,$AD$2:$AD$311))&" مكرّر "))) -> الثّالث والخمسون مكرّر
A86: a85 | B86: 0 | C86: 0 | D86: 0 | E86: دون المستوى | F86: 12 | G86: 13 | H86: 25 | I86: مقبول | J86: 19 | K86: 16 | L86: 35 | M86: جيد | N86: 11 | O86: 19 | P86: 30 | Q86: مقبول | R86: 11 | S86: 11 | T86: 22 | U86: دون المستوى | V86: 9 | W86: 16 | X86: 25 | Y86: مقبول | Z86: 4 | AA86: 16 | AB86: 7 | AC86: دون المستوى | AD86: 144 | AE86: دون المستوى | AF86: 0.4114285714 | AG86: =IF(A86="","",IF(AF86="غ","غائب",IF(COUNTIF(AD$2:$AD86,AD86)=1,OrdeUP100(RANK(AD86,$AD$2:$AD$311)),OrdeUP100(RANK(AD86,$AD$2:$AD$311))&" مكرّر "))) -> الثّاني والتّسعون مكرّر
A87: a86 | B87: 11 | C87: 18 | D87: =IF(A87="","",IF(AND(B87="غ",C87="غ"),"غ",SUM(B87:C87))) -> 29 | E87: مقبول | F87: 12 | G87: 20 | H87: 32 | I87: مقبول | J87: 4 | K87: 8 | L87: 12 | M87: دون المستوى | N87: 18 | O87: 16 | P87: 34 | Q87: جيد | R87: 11 | S87: 7 | T87: 18 | U87: دون المستوى | V87: 18 | W87: 1 | X87: 19 | Y87: دون المستوى | Z87: 10 | AA87: 19 | AB87: 4 | AC87: دون المستوى | AD87: 148 | AE87: دون المستوى | AF87: 0.4228571429 | AG87: =IF(A87="","",IF(AF87="غ","غائب",IF(COUNTIF(AD$2:$AD87,AD87)=1,OrdeUP100(RANK(AD87,$AD$2:$AD$311)),OrdeUP100(RANK(AD87,$AD$2:$AD$311))&" مكرّر "))) -> التّاسع والستون مكرّر
A88: a87 | B88: 17 | C88: 10 | D88: 27 | E88: مقبول | F88: 8 | G88: 15 | H88: 23 | I88: دون المستوى | J88: 20 | K88: 14 | L88: 34 | M88: جيد | N88: 0 | O88: 14 | P88: 14 | Q88: دون المستوى | R88: 1 | S88: 13 | T88: 14 | U88: دون المستوى | V88: 5 | W88: 1 | X88: 6 | Y88: دون المستوى | Z88: 3 | AA88: 0 | AB88: 14 | AC88: دون المستوى | AD88: 132 | AE88: دون المستوى | AF88: 0.3771428571 | AG88: =IF(A88="","",IF(AF88="غ","غائب",IF(COUNTIF(AD$2:$AD88,AD88)=1,OrdeUP100(RANK(AD88,$AD$2:$AD$311)),OrdeUP100(RANK(AD88,$AD$2:$AD$311))&" مكرّر "))) -> مئة والتّاسع والستون مكرّر
A89: a88 | B89: 7 | C89: 12 | D89: 19 | E89: دون المستوى | F89: 1 | G89: 12 | H89: 13 | I89: دون المستوى | J89: 9 | K89: 9 | L89: 18 | M89: دون المستوى | N89: 0 | O89: 19 | P89: 19 | Q89: دون المستوى | R89: 10 | S89: 14 | T89: 24 | U89: دون المستوى | V89: 20 | W89: 14 | X89: 34 | Y89: جيد | Z89: 17 | AA89: 17 | AB89: 6 | AC89: دون المستوى | AD89: 133 | AE89: دون المستوى | AF89: 0.38 | AG89: =IF(A89="","",IF(AF89="غ","غائب",IF(COUNTIF(AD$2:$AD89,AD89)=1,OrdeUP100(RANK(AD89,$AD$2:$AD$311)),OrdeUP100(RANK(AD89,$AD$2:$AD$311))&" مكرّر "))) -> مئة والثّاني والستون مكرّر
A90: a89 | B90: 19 | C90: 12 | D90: 31 | E90: مقبول | F90: 3 | G90: 3 | H90: 6 | I90: دون المستوى | J90: 9 | K90: 14 | L90: 23 | M90: دون المستوى | N90: 14 | O90: 7 | P90: 21 | Q90: دون المستوى | R90: 9 | S90: 1 | T90: 10 | U90: دون المستوى | V90: 7 | W90: 15 | X90: 22 | Y90: دون المستوى | Z90: 6 | AA90: 6 | AB90: 9 | AC90: دون المستوى | AD90: 122 | AE90: دون المستوى | AF90: 0.3485714286 | AG90: =IF(A90="","",IF(AF90="غ","غائب",IF(COUNTIF(AD$2:$AD90,AD90)=1,OrdeUP100(RANK(AD90,$AD$2:$AD$311)),OrdeUP100(RANK(AD90,$AD$2:$AD$311))&" مكرّر "))) -> مئتين والسّابع عشر مكرّر
A91: a90 | B91: 19 | C91: 11 | D91: 30 | E91: مقبول | F91: 6 | G91: 15 | H91: 21 | I91: دون المستوى | J91: 17 | K91: 11 | L91: 28 | M91: مقبول | N91: 20 | O91: 19 | P91: 39 | Q91: جيد جداً | R91: 15 | S91: 8 | T91: 23 | U91: دون المستوى | V91: 20 | W91: 9 | X91: 29 | Y91: مقبول | Z91: 17 | AA91: 8 | AB91: 17 | AC91: دون المستوى | AD91: 187 | AE91: مقبول | AF91: 0.5342857143 | AG91: =IF(A91="","",IF(AF91="غ","غائب",IF(COUNTIF(AD$2:$AD91,AD91)=1,OrdeUP100(RANK(AD91,$AD$2:$AD$311)),OrdeUP100(RANK(AD91,$AD$2:$AD$311))&" مكرّر "))) -> الرّابع مكرّر
A92: a91 | B92: 16 | C92: 15 | D92: 31 | E92: مقبول | F92: 5 | G92: 12 | H92: 17 | I92: دون المستوى | J92: 19 | K92: 16 | L92: 35 | M92: جيد | N92: 2 | O92: 15 | P92: 17 | Q92: دون المستوى | R92: 17 | S92: 1 | T92: 18 | U92: دون المستوى | V92: 17 | W92: 6 | X92: 23 | Y92: دون المستوى | Z92: 11 | AA92: 13 | AB92: 0 | AC92: دون المستوى | AD92: 141 | AE92: دون المستوى | AF92: 0.4028571429 | AG92: =IF(A92="","",IF(AF92="غ","غائب",IF(COUNTIF(AD$2:$AD92,AD92)=1,OrdeUP100(RANK(AD92,$AD$2:$AD$311)),OrdeUP100(RANK(AD92,$AD$2:$AD$311))&" مكرّر "))) -> مئة والثّاني عشر مكرّر
A93: a92 | B93: 2 | C93: 4 | D93: 6 | E93: دون المستوى | F93: 3 | G93: 3 | H93: 6 | I93: دون المستوى | J93: 12 | K93: 1 | L93: 13 | M93: دون المستوى | N93: 10 | O93: 16 | P93: 26 | Q93: مقبول | R93: 11 | S93: 6 | T93: 17 | U93: دون المستوى | V93: 6 | W93: 0 | X93: 6 | Y93: دون المستوى | Z93: 20 | AA93: 4 | AB93: 0 | AC93: دون المستوى | AD93: 74 | AE93: دون المستوى | AF93: 0.2114285714 | AG93: =IF(A93="","",IF(AF93="غ","غائب",IF(COUNTIF(AD$2:$AD93,AD93)=1,OrdeUP100(RANK(AD93,$AD$2:$AD$311)),OrdeUP100(RANK(AD93,$AD$2:$AD$311))&" مكرّر "))) -> ثلاثمائة والعاشر
A94: a93 | B94: 19 | C94: 12 | D94: 31 | E94: مقبول | F94: 12 | G94: 11 | H94: 23 | I94: دون المستوى | J94: 8 | K94: 8 | L94: 16 | M94: دون المستوى | N94: 11 | O94: 17 | P94: 28 | Q94: مقبول | R94: 3 | S94: 6 | T94: 9 | U94: دون المستوى | V94: 17 | W94: 8 | X94: 25 | Y94: مقبول | Z94: 12 | AA94: 0 | AB94: 5 | AC94: دون المستوى | AD94: 137 | AE94: دون المستوى | AF94: 0.3914285714 | AG94: =IF(A94="","",IF(AF94="غ","غائب",IF(COUNTIF(AD$2:$AD94,AD94)=1,OrdeUP100(RANK(AD94,$AD$2:$AD$311)),OrdeUP100(RANK(AD94,$AD$2:$AD$311))&" مكرّر "))) -> مئة والحادي والأربعون مكرّر
A95: a94 | B95: 17 | C95: 5 | D95: 22 | E95: دون المستوى | F95: 14 | G95: 6 | H95: 20 | I95: دون المستوى | J95: 3 | K95: 20 | L95: 23 | M95: دون المستوى | N95: 2 | O95: 13 | P95: 15 | Q95: دون المستوى | R95: 16 | S95: 2 | T95: 18 | U95: دون المستوى | V95: 11 | W95: 19 | X95: 30 | Y95: مقبول | Z95: 9 | AA95: 13 | AB95: 8 | AC95: دون المستوى | AD95: 136 | AE95: دون المستوى | AF95: 0.3885714286 | AG95: =IF(A95="","",IF(AF95="غ","غائب",IF(COUNTIF(AD$2:$AD95,AD95)=1,OrdeUP100(RANK(AD95,$AD$2:$AD$311)),OrdeUP100(RANK(AD95,$AD$2:$AD$311))&" مكرّر "))) -> مئة والتّاسع والأربعون مكرّر
A96: a95 | B96: 8 | C96: 13 | D96: 21 | E96: دون المستوى | F96: 4 | G96: 16 | H96: 20 | I96: دون المستوى | J96: 20 | K96: 10 | L96: 30 | M96: مقبول | N96: 8 | O96: 1 | P96: 9 | Q96: دون المستوى | R96: 2 | S96: 3 | T96: 5 | U96: دون المستوى | V96: 13 | W96: 0 | X96: 13 | Y96: دون المستوى | Z96: 9 | AA96: 15 | AB96: 6 | AC96: دون المستوى | AD96: 104 | AE96: دون المستوى | AF96: 0.2971428571 | AG96: =IF(A96="","",IF(AF96="غ","غائب",IF(COUNTIF(AD$2:$AD96,AD96)=1,OrdeUP100(RANK(AD96,$AD$2:$AD$311)),OrdeUP100(RANK(AD96,$AD$2:$AD$311))&" مكرّر "))) -> مئتين والثّامن والسّبعون مكرّر
A97: a96 | B97: 0 | C97: 2 | D97: 2 | E97: دون المستوى | F97: 17 | G97: 19 | H97: 36 | I97: جيد | J97: 10 | K97: 18 | L97: 28 | M97: مقبول | N97: 20 | O97: 1 | P97: 21 | Q97: دون المستوى | R97: 18 | S97: 4 | T97: 22 | U97: دون المستوى | V97: 3 | W97: 7 | X97: 10 | Y97: دون المستوى | Z97: 8 | AA97: 8 | AB97: 20 | AC97: دون المستوى | AD97: 139 | AE97: دون المستوى | AF97: 0.3971428571 | AG97: =IF(A97="","",IF(AF97="غ","غائب",IF(COUNTIF(AD$2:$AD97,AD97)=1,OrdeUP100(RANK(AD97,$AD$2:$AD$311)),OrdeUP100(RANK(AD97,$AD$2:$AD$311))&" مكرّر "))) -> مئة والخامس والعشرون مكرّر
A98: a97 | B98: 16 | C98: 11 | D98: 27 | E98: مقبول | F98: 4 | G98: 12 | H98: 16 | I98: دون المستوى | J98: 16 | K98: 20 | L98: 36 | M98: جيد | N98: 9 | O98: 8 | P98: 17 | Q98: دون المستوى | R98: 13 | S98: 14 | T98: 27 | U98: مقبول | V98: 4 | W98: 12 | X98: 16 | Y98: دون المستوى | Z98: 3 | AA98: 3 | AB98: 4 | AC98: دون المستوى | AD98: 143 | AE98: دون المستوى | AF98: 0.4085714286 | AG98: =IF(A98="","",IF(AF98="غ","غائب",IF(COUNTIF(AD$2:$AD98,AD98)=1,OrdeUP100(RANK(AD98,$AD$2:$AD$311)),OrdeUP100(RANK(AD98,$AD$2:$AD$311))&" مكرّر "))) -> الثّامن والتّسعون مكرّر
A99: a98 | B99: 12 | C99: 12 | D99: 24 | E99: دون المستوى | F99: 5 | G99: 3 | H99: 8 | I99: دون المستوى | J99: 17 | K99: 13 | L99: 30 | M99: مقبول | N99: 7 | O99: 13 | P99: 20 | Q99: دون المستوى | R99: 4 | S99: 11 | T99: 15 | U99: دون المستوى | V99: 7 | W99: 0 | X99: 7 | Y99: دون المستوى | Z99: 1 | AA99: 14 | AB99: 14 | AC99: دون المستوى | AD99: 118 | AE99: دون المستوى | AF99: 0.3371428571 | AG99: =IF(A99="","",IF(AF99="غ","غائب",IF(COUNTIF(AD$2:$AD99,AD99)=1,OrdeUP100(RANK(AD99,$AD$2:$AD$311)),OrdeUP100(RANK(AD99,$AD$2:$AD$311))&" مكرّر "))) -> مئتين والثّاني والثّلاثون مكرّر
A100: a99 | B100: 3 | C100: 18 | D100: 21 | E100: دون المستوى | F100: 11 | G100: 20 | H100: 31 | I100: مقبول | J100: 19 | K100: 11 | L100: 30 | M100: مقبول | N100: 0 | O100: 19 | P100: 19 | Q100: دون المستوى | R100: 11 | S100: 10 | T100: 21 | U100: دون المستوى | V100: 6 | W100: 14 | X100: 20 | Y100: دون المستوى | Z100: 13 | AA100: 19 | AB100: 20 | AC100: دون المستوى | AD100: 162 | AE100: دون المستوى | AF100: 0.4628571429 | AG100: =IF(A100="","",IF(AF100="غ","غائب",IF(COUNTIF(AD$2:$AD100,AD100)=1,OrdeUP100(RANK(AD100,$AD$2:$AD$311)),OrdeUP100(RANK(AD100,$AD$2:$AD$311))&" مكرّر "))) -> السّادس والعشرون
A101: a100 | B101: 17 | C101: 20 | D101: 37 | E101: جيد | F101: 8 | G101: 17 | H101: 25 | I101: مقبول | J101: 5 | K101: 16 | L101: 21 | M101: دون المستوى | N101: 6 | O101: 13 | P101: 19 | Q101: دون المستوى | R101: 0 | S101: 16 | T101: 16 | U101: دون المستوى | V101: 17 | W101: 14 | X101: 31 | Y101: مقبول | Z101: 20 | AA101: 1 | AB101: 19 | AC101: دون المستوى | AD101: 168 | AE101: دون المستوى | AF101: 0.48 | AG101: =IF(A101="","",IF(AF101="غ","غائب",IF(COUNTIF(AD$2:$AD101,AD101)=1,OrdeUP100(RANK(AD101,$AD$2:$AD$311)),OrdeUP100(RANK(AD101,$AD$2:$AD$311))&" مكرّر "))) -> الرّابع عشر مكرّر
A102: a101 | B102: 6 | C102: 11 | D102: 17 | E102: دون المستوى | F102: 20 | G102: 6 | H102: 26 | I102: مقبول | J102: 17 | K102: 9 | L102: 26 | M102: مقبول | N102: 19 | O102: 20 | P102: 39 | Q102: جيد جداً | R102: 0 | S102: 18 | T102: 18 | U102: دون المستوى | V102: 2 | W102: 9 | X102: 11 | Y102: دون المستوى | Z102: =RANDBETWEEN(0,20) -> 10 | AA102: 2 | AB102: 2 | AC102: دون المستوى | AD102: 139 | AE102: دون المستوى | AF102: 0.3971428571 | AG102: =IF(A102="","",IF(AF102="غ","غائب",IF(COUNTIF(AD$2:$AD102,AD102)=1,OrdeUP100(RANK(AD102,$AD$2:$AD$311)),OrdeUP100(RANK(AD102,$AD$2:$AD$311))&" مكرّر "))) -> مئة والخامس والعشرون مكرّر
A103: a102 | B103: 13 | C103: 20 | D103: 33 | E103: جيد | F103: 4 | G103: 6 | H103: 10 | I103: دون المستوى | J103: 3 | K103: 1 | L103: 4 | M103: دون المستوى | N103: 3 | O103: 19 | P103: 22 | Q103: دون المستوى | R103: 6 | S103: 15 | T103: 21 | U103: دون المستوى | V103: 16 | W103: 7 | X103: 23 | Y103: دون المستوى | Z103: 12 | AA103: 13 | AB103: 14 | AC103: دون المستوى | AD103: 127 | AE103: دون المستوى | AF103: 0.3628571429 | AG103: =IF(A103="","",IF(AF103="غ","غائب",IF(COUNTIF(AD$2:$AD103,AD103)=1,OrdeUP100(RANK(AD103,$AD$2:$AD$311)),OrdeUP100(RANK(AD103,$AD$2:$AD$311))&" مكرّر "))) -> مئة والثّاني والتّسعون مكرّر
A104: a103 | B104: 0 | C104: 18 | D104: 18 | E104: دون المستوى | F104: 18 | G104: 13 | H104: 31 | I104: مقبول | J104: 16 | K104: 15 | L104: 31 | M104: مقبول | N104: 17 | O104: 3 | P104: 20 | Q104: دون المستوى | R104: 17 | S104: 15 | T104: 32 | U104: مقبول | V104: 6 | W104: 14 | X104: 20 | Y104: دون المستوى | Z104: 1 | AA104: 8 | AB104: 16 | AC104: دون المستوى | AD104: 168 | AE104: دون المستوى | AF104: 0.48 | AG104: =IF(A104="","",IF(AF104="غ","غائب",IF(COUNTIF(AD$2:$AD104,AD104)=1,OrdeUP100(RANK(AD104,$AD$2:$AD$311)),OrdeUP100(RANK(AD104,$AD$2:$AD$311))&" مكرّر "))) -> الرّابع عشر مكرّر
A105: a104 | B105: 5 | C105: 8 | D105: 13 | E105: دون المستوى | F105: 15 | G105: 15 | H105: 30 | I105: مقبول | J105: 18 | K105: 12 | L105: 30 | M105: مقبول | N105: 7 | O105: 20 | P105: 27 | Q105: مقبول | R105: 0 | S105: 7 | T105: 7 | U105: دون المستوى | V105: 12 | W105: 14 | X105: 26 | Y105: مقبول | Z105: 8 | AA105: 12 | AB105: 7 | AC105: دون المستوى | AD105: 140 | AE105: دون المستوى | AF105: 0.4 | AG105: =IF(A105="","",IF(AF105="غ","غائب",IF(COUNTIF(AD$2:$AD105,AD105)=1,OrdeUP100(RANK(AD105,$AD$2:$AD$311)),OrdeUP100(RANK(AD105,$AD$2:$AD$311))&" مكرّر "))) -> مئة والثّامن عشر مكرّر
A106: a105 | B106: 2 | C106: 16 | D106: 18 | E106: دون المستوى | F106: 3 | G106: 11 | H106: 14 | I106: دون المستوى | J106: 3 | K106: 17 | L106: 20 | M106: دون المستوى | N106: 14 | O106: 20 | P106: 34 | Q106: جيد | R106: 18 | S106: 2 | T106: 20 | U106: دون المستوى | V106: 16 | W106: 14 | X106: 30 | Y106: مقبول | Z106: 7 | AA106: 7 | AB106: 10 | AC106: دون المستوى | AD106: 146 | AE106: دون المستوى | AF106: 0.4171428571 | AG106: =IF(A106="","",IF(AF106="غ","غائب",IF(COUNTIF(AD$2:$AD106,AD106)=1,OrdeUP100(RANK(AD106,$AD$2:$AD$311)),OrdeUP100(RANK(AD106,$AD$2:$AD$311))&" مكرّر "))) -> الحادي والثّمانون مكرّر
A107: a106 | B107: 4 | C107: 11 | D107: 15 | E107: دون المستوى | F107: 12 | G107: 10 | H107: 22 | I107: دون المستوى | J107: 2 | K107: 18 | L107: 20 | M107: دون المستوى | N107: 14 | O107: 16 | P107: 30 | Q107: مقبول | R107: 7 | S107: 1 | T107: 8 | U107: دون المستوى | V107: 16 | W107: 9 | X107: 25 | Y107: مقبول | Z107: 0 | AA107: 14 | AB107: 19 | AC107: دون المستوى | AD107: 139 | AE107: دون المستوى | AF107: 0.3971428571 | AG107: =IF(A107="","",IF(AF107="غ","غائب",IF(COUNTIF(AD$2:$AD107,AD107)=1,OrdeUP100(RANK(AD107,$AD$2:$AD$311)),OrdeUP100(RANK(AD107,$AD$2:$AD$311))&" مكرّر "))) -> مئة والخامس والعشرون مكرّر
A108: a107 | B108: 7 | C108: 9 | D108: 16 | E108: دون المستوى | F108: 13 | G108: 8 | H108: 21 | I108: دون المستوى | J108: 1 | K108: 20 | L108: 21 | M108: دون المستوى | N108: 5 | O108: 10 | P108: 15 | Q108: دون المستوى | R108: 11 | S108: 5 | T108: 16 | U108: دون المستوى | V108: 19 | W108: 18 | X108: 37 | Y108: جيد | Z108: 11 | AA108: 3 | AB108: 2 | AC108: دون المستوى | AD108: 128 | AE108: دون المستوى | AF108: 0.3657142857 | AG108: =IF(A108="","",IF(AF108="غ","غائب",IF(COUNTIF(AD$2:$AD108,AD108)=1,OrdeUP100(RANK(AD108,$AD$2:$AD$311)),OrdeUP100(RANK(AD108,$AD$2:$AD$311))&" مكرّر "))) -> مئة والثّامن والثّمانون مكرّر
A109: a108 | B109: 14 | C109: 8 | D109: 22 | E109: دون المستوى | F109: 15 | G109: 15 | H109: 30 | I109: مقبول | J109: 5 | K109: 4 | L109: 9 | M109: دون المستوى | N109: 19 | O109: 6 | P109: 25 | Q109: مقبول | R109: 11 | S109: 14 | T109: 25 | U109: مقبول | V109: 14 | W109: 15 | X109: 29 | Y109: مقبول | Z109: 14 | AA109: 9 | AB109: 3 | AC109: دون المستوى | AD109: 143 | AE109: دون المستوى | AF109: 0.4085714286 | AG109: =IF(A109="","",IF(AF109="غ","غائب",IF(COUNTIF(AD$2:$AD109,AD109)=1,OrdeUP100(RANK(AD109,$AD$2:$AD$311)),OrdeUP100(RANK(AD109,$AD$2:$AD$311))&" مكرّر "))) -> الثّامن والتّسعون مكرّر
A110: a109 | B110: 18 | C110: 9 | D110: 27 | E110: مقبول | F110: 16 | G110: 14 | H110: 30 | I110: مقبول | J110: 19 | K110: 8 | L110: 27 | M110: مقبول | N110: 13 | O110: 20 | P110: 33 | Q110: جيد | R110: 9 | S110: 3 | T110: 12 | U110: دون المستوى | V110: 0 | W110: 17 | X110: 17 | Y110: دون المستوى | Z110: 18 | AA110: 2 | AB110: 2 | AC110: دون المستوى | AD110: 148 | AE110: دون المستوى | AF110: 0.4228571429 | AG110: =IF(A110="","",IF(AF110="غ","غائب",IF(COUNTIF(AD$2:$AD110,AD110)=1,OrdeUP100(RANK(AD110,$AD$2:$AD$311)),OrdeUP100(RANK(AD110,$AD$2:$AD$311))&" مكرّر "))) -> التّاسع والستون مكرّر
A111: a110 | B111: 19 | C111: 14 | D111: 33 | E111: جيد | F111: 19 | G111: 2 | H111: 21 | I111: دون المستوى | J111: 16 | K111: 4 | L111: 20 | M111: دون المستوى | N111: 0 | O111: 11 | P111: 11 | Q111: دون المستوى | R111: 3 | S111: 9 | T111: 12 | U111: دون المستوى | V111: 10 | W111: 20 | X111: 30 | Y111: مقبول | Z111: 15 | AA111: 16 | AB111: 13 | AC111: دون المستوى | AD111: 140 | AE111: دون المستوى | AF111: 0.4 | AG111: =IF(A111="","",IF(AF111="غ","غائب",IF(COUNTIF(AD$2:$AD111,AD111)=1,OrdeUP100(RANK(AD111,$AD$2:$AD$311)),OrdeUP100(RANK(AD111,$AD$2:$AD$311))&" مكرّر "))) -> مئة والثّامن عشر مكرّر
A112: a111 | B112: 9 | C112: 16 | D112: 25 | E112: مقبول | F112: 17 | G112: 12 | H112: 29 | I112: مقبول | J112: 7 | K112: 9 | L112: 16 | M112: دون المستوى | N112: 0 | O112: 6 | P112: 6 | Q112: دون المستوى | R112: 15 | S112: 6 | T112: 21 | U112: دون المستوى | V112: 18 | W112: 12 | X112: 30 | Y112: مقبول | Z112: 9 | AA112: 0 | AB112: 13 | AC112: دون المستوى | AD112: 140 | AE112: دون المستوى | AF112: 0.4 | AG112: =IF(A112="","",IF(AF112="غ","غائب",IF(COUNTIF(AD$2:$AD112,AD112)=1,OrdeUP100(RANK(AD112,$AD$2:$AD$311)),OrdeUP100(RANK(AD112,$AD$2:$AD$311))&" مكرّر "))) -> مئة والثّامن عشر مكرّر
A113: a112 | B113: 19 | C113: 6 | D113: 25 | E113: مقبول | F113: 9 | G113: 18 | H113: 27 | I113: مقبول | J113: 11 | K113: 16 | L113: 27 | M113: مقبول | N113: 8 | O113: 2 | P113: 10 | Q113: دون المستوى | R113: 12 | S113: 20 | T113: 32 | U113: مقبول | V113: 5 | W113: 12 | X113: 17 | Y113: دون المستوى | Z113: 2 | AA113: 14 | AB113: 8 | AC113: دون المستوى | AD113: 146 | AE113: دون المستوى | AF113: 0.4171428571 | AG113: =IF(A113="","",IF(AF113="غ","غائب",IF(COUNTIF(AD$2:$AD113,AD113)=1,OrdeUP100(RANK(AD113,$AD$2:$AD$311)),OrdeUP100(RANK(AD113,$AD$2:$AD$311))&" مكرّر "))) -> الحادي والثّمانون مكرّر
A114: a113 | B114: 9 | C114: 17 | D114: 26 | E114: مقبول | F114: 5 | G114: 7 | H114: 12 | I114: دون المستوى | J114: 8 | K114: 11 | L114: 19 | M114: دون المستوى | N114: 8 | O114: 14 | P114: 22 | Q114: دون المستوى | R114: 20 | S114: 7 | T114: 27 | U114: مقبول | V114: 17 | W114: 2 | X114: 19 | Y114: دون المستوى | Z114: 3 | AA114: 5 | AB114: 17 | AC114: دون المستوى | AD114: 142 | AE114: دون المستوى | AF114: 0.4057142857 | AG114: =IF(A114="","",IF(AF114="غ","غائب",IF(COUNTIF(AD$2:$AD114,AD114)=1,OrdeUP100(RANK(AD114,$AD$2:$AD$311)),OrdeUP100(RANK(AD114,$AD$2:$AD$311))&" مكرّر "))) -> مئة وخمسة
A115: a114 | B115: 8 | C115: 6 | D115: 14 | E115: دون المستوى | F115: 11 | G115: 16 | H115: 27 | I115: مقبول | J115: 16 | K115: 4 | L115: 20 | M115: دون المستوى | N115: 15 | O115: 10 | P115: 25 | Q115: مقبول | R115: 6 | S115: 15 | T115: 21 | U115: دون المستوى | V115: 19 | W115: 17 | X115: 36 | Y115: جيد | Z115: 10 | AA115: 9 | AB115: 9 | AC115: دون المستوى | AD115: 152 | AE115: دون المستوى | AF115: 0.4342857143 | AG115: =IF(A115="","",IF(AF115="غ","غائب",IF(COUNTIF(AD$2:$AD115,AD115)=1,OrdeUP100(RANK(AD115,$AD$2:$AD$311)),OrdeUP100(RANK(AD115,$AD$2:$AD$311))&" مكرّر "))) -> الثّالث والخمسون مكرّر
A116: a115 | B116: 19 | C116: 16 | D116: 35 | E116: جيد | F116: 2 | G116: 11 | H116: 13 | I116: دون المستوى | J116: 15 | K116: 11 | L116: 26 | M116: مقبول | N116: 6 | O116: 5 | P116: 11 | Q116: دون المستوى | R116: 4 | S116: 2 | T116: 6 | U116: دون المستوى | V116: 2 | W116: 19 | X116: 21 | Y116: دون المستوى | Z116: 3 | AA116: 19 | AB116: 7 | AC116: دون المستوى | AD116: 119 | AE116: دون المستوى | AF116: 0.34 | AG116: =IF(A116="","",IF(AF116="غ","غائب",IF(COUNTIF(AD$2:$AD116,AD116)=1,OrdeUP100(RANK(AD116,$AD$2:$AD$311)),OrdeUP100(RANK(AD116,$AD$2:$AD$311))&" مكرّر "))) -> مئتين والتّاسع والعشرون
A117: a116 | B117: 1 | C117: 18 | D117: 19 | E117: دون المستوى | F117: 13 | G117: 11 | H117: 24 | I117: دون المستوى | J117: 19 | K117: 6 | L117: 25 | M117: مقبول | N117: 20 | O117: 9 | P117: 29 | Q117: مقبول | R117: 20 | S117: 20 | T117: 40 | U117: جيد جداً | V117: 11 | W117: 5 | X117: 16 | Y117: دون المستوى | Z117: 9 | AA117: 14 | AB117: 15 | AC117: دون المستوى | AD117: 168 | AE117: دون المستوى | AF117: 0.48 | AG117: =IF(A117="","",IF(AF117="غ","غائب",IF(COUNTIF(AD$2:$AD117,AD117)=1,OrdeUP100(RANK(AD117,$AD$2:$AD$311)),OrdeUP100(RANK(AD117,$AD$2:$AD$311))&" مكرّر "))) -> الرّابع عشر مكرّر
A118: a117 | B118: 0 | C118: 20 | D118: 20 | E118: دون المستوى | F118: 1 | G118: 13 | H118: 14 | I118: دون المستوى | J118: 14 | K118: 17 | L118: 31 | M118: مقبول | N118: 9 | O118: 19 | P118: 28 | Q118: مقبول | R118: 11 | S118: 12 | T118: 23 | U118: دون المستوى | V118: 4 | W118: 18 | X118: 22 | Y118: دون المستوى | Z118: 0 | AA118: 16 | AB118: 14 | AC118: دون المستوى | AD118: 152 | AE118: دون المستوى | AF118: 0.4342857143 | AG118: =IF(A118="","",IF(AF118="غ","غائب",IF(COUNTIF(AD$2:$AD118,AD118)=1,OrdeUP100(RANK(AD118,$AD$2:$AD$311)),OrdeUP100(RANK(AD118,$AD$2:$AD$311))&" مكرّر "))) -> الثّالث والخمسون مكرّر
A119: a118 | B119: 14 | C119: 12 | D119: 26 | E119: مقبول | F119: 20 | G119: 4 | H119: 24 | I119: دون المستوى | J119: 13 | K119: 3 | L119: 16 | M119: دون المستوى | N119: 1 | O119: 10 | P119: 11 | Q119: دون المستوى | R119: 6 | S119: 4 | T119: 10 | U119: دون المستوى | V119: 0 | W119: 3 | X119: 3 | Y119: دون المستوى | Z119: 4 | AA119: 11 | AB119: 2 | AC119: دون المستوى | AD119: 92 | AE119: دون المستوى | AF119: 0.2628571429 | AG119: =IF(A119="","",IF(AF119="غ","غائب",IF(COUNTIF(AD$2:$AD119,AD119)=1,OrdeUP100(RANK(AD119,$AD$2:$AD$311)),OrdeUP100(RANK(AD119,$AD$2:$AD$311))&" مكرّر "))) -> ثلاثمائة وإثنين
A120: a119 | B120: 8 | C120: 2 | D120: 10 | E120: دون المستوى | F120: 20 | G120: 10 | H120: 30 | I120: مقبول | J120: 5 | K120: 2 | L120: 7 | M120: دون المستوى | N120: 0 | O120: 16 | P120: 16 | Q120: دون المستوى | R120: 2 | S120: 15 | T120: 17 | U120: دون المستوى | V120: 3 | W120: 11 | X120: 14 | Y120: دون المستوى | Z120: 14 | AA120: 0 | AB120: 14 | AC120: دون المستوى | AD120: 108 | AE120: دون المستوى | AF120: 0.3085714286 | AG120: =IF(A120="","",IF(AF120="غ","غائب",IF(COUNTIF(AD$2:$AD120,AD120)=1,OrdeUP100(RANK(AD120,$AD$2:$AD$311)),OrdeUP100(RANK(AD120,$AD$2:$AD$311))&" مكرّر "))) -> مئتين والثّامن والستون مكرّر
A121: a120 | B121: 6 | C121: 10 | D121: 16 | E121: دون المستوى | F121: 7 | G121: 11 | H121: 18 | I121: دون المستوى | J121: 16 | K121: 11 | L121: 27 | M121: مقبول | N121: 15 | O121: 13 | P121: 28 | Q121: مقبول | R121: 18 | S121: 2 | T121: 20 | U121: دون المستوى | V121: 20 | W121: 3 | X121: 23 | Y121: دون المستوى | Z121: 15 | AA121: 12 | AB121: 16 | AC121: دون المستوى | AD121: 148 | AE121: دون المستوى | AF121: 0.4228571429 | AG121: =IF(A121="","",IF(AF121="غ","غائب",IF(COUNTIF(AD$2:$AD121,AD121)=1,OrdeUP100(RANK(AD121,$AD$2:$AD$311)),OrdeUP100(RANK(AD121,$AD$2:$AD$311))&" مكرّر "))) -> التّاسع والستون مكرّر
A122: a121 | B122: 13 | C122: 20 | D122: 33 | E122: جيد | F122: 14 | G122: 14 | H122: 28 | I122: مقبول | J122: 12 | K122: 16 | L122: 28 | M122: مقبول | N122: 15 | O122: 20 | P122: 35 | Q122: جيد | R122: 6 | S122: 12 | T122: 18 | U122: دون المستوى | V122: 11 | W122: 13 | X122: 24 | Y122: دون المستوى | Z122: =RANDBETWEEN(0,20) -> 2 | AA122: 7 | AB122: 11 | AC122: دون المستوى | AD122: 177 | AE122: مقبول | AF122: 0.5057142857 | AG122: =IF(A122="","",IF(AF122="غ","غائب",IF(COUNTIF(AD$2:$AD122,AD122)=1,OrdeUP100(RANK(AD122,$AD$2:$AD$311)),OrdeUP100(RANK(AD122,$AD$2:$AD$311))&" مكرّر "))) -> السّابع
A123: a122 | B123: 13 | C123: 13 | D123: 26 | E123: مقبول | F123: 20 | G123: 15 | H123: 35 | I123: جيد | J123: 0 | K123: 15 | L123: 15 | M123: دون المستوى | N123: 3 | O123: 0 | P123: 3 | Q123: دون المستوى | R123: 3 | S123: 17 | T123: 20 | U123: دون المستوى | V123: 6 | W123: 3 | X123: 9 | Y123: دون المستوى | Z123: 15 | AA123: 14 | AB123: 14 | AC123: دون المستوى | AD123: 122 | AE123: دون المستوى | AF123: 0.3485714286 | AG123: =IF(A123="","",IF(AF123="غ","غائب",IF(COUNTIF(AD$2:$AD123,AD123)=1,OrdeUP100(RANK(AD123,$AD$2:$AD$311)),OrdeUP100(RANK(AD123,$AD$2:$AD$311))&" مكرّر "))) -> مئتين والسّابع عشر مكرّر
A124: a123 | B124: 15 | C124: 5 | D124: 20 | E124: دون المستوى | F124: 20 | G124: 6 | H124: 26 | I124: مقبول | J124: 18 | K124: 5 | L124: 23 | M124: دون المستوى | N124: 16 | O124: 12 | P124: 28 | Q124: مقبول | R124: 20 | S124: 10 | T124: 30 | U124: مقبول | V124: 1 | W124: 19 | X124: 20 | Y124: دون المستوى | Z124: 14 | AA124: 5 | AB124: 14 | AC124: دون المستوى | AD124: 161 | AE124: دون المستوى | AF124: 0.46 | AG124: =IF(A124="","",IF(AF124="غ","غائب",IF(COUNTIF(AD$2:$AD124,AD124)=1,OrdeUP100(RANK(AD124,$AD$2:$AD$311)),OrdeUP100(RANK(AD124,$AD$2:$AD$311))&" مكرّر "))) -> الثّامن والعشرون مكرّر
A125: a124 | B125: 16 | C125: 20 | D125: 36 | E125: جيد | F125: 17 | G125: 15 | H125: 32 | I125: مقبول | J125: 18 | K125: 17 | L125: 35 | M125: جيد | N125: 1 | O125: 4 | P125: 5 | Q125: دون المستوى | R125: 18 | S125: 4 | T125: 22 | U125: دون المستوى | V125: 9 | W125: 16 | X125: 25 | Y125: مقبول | Z125: 19 | AA125: 1 | AB125: 0 | AC125: دون المستوى | AD125: 155 | AE125: دون المستوى | AF125: 0.4428571429 | AG125: =IF(A125="","",IF(AF125="غ","غائب",IF(COUNTIF(AD$2:$AD125,AD125)=1,OrdeUP100(RANK(AD125,$AD$2:$AD$311)),OrdeUP100(RANK(AD125,$AD$2:$AD$311))&" مكرّر "))) -> الثّامن والثّلاثون مكرّر
A126: a125 | B126: 12 | C126: 9 | D126: 21 | E126: دون المستوى | F126: 9 | G126: 12 | H126: 21 | I126: دون المستوى | J126: 6 | K126: 15 | L126: 21 | M126: دون المستوى | N126: 16 | O126: 12 | P126: 28 | Q126: مقبول | R126: 3 | S126: 18 | T126: 21 | U126: دون المستوى | V126: 9 | W126: 9 | X126: 18 | Y126: دون المستوى | Z126: 14 | AA126: 8 | AB126: 16 | AC126: دون المستوى | AD126: 146 | AE126: دون المستوى | AF126: 0.4171428571 | AG126: =IF(A126="","",IF(AF126="غ","غائب",IF(COUNTIF(AD$2:$AD126,AD126)=1,OrdeUP100(RANK(AD126,$AD$2:$AD$311)),OrdeUP100(RANK(AD126,$AD$2:$AD$311))&" مكرّر "))) -> الحادي والثّمانون مكرّر
A127: a126 | B127: 9 | C127: 2 | D127: 11 | E127: دون المستوى | F127: 1 | G127: 7 | H127: 8 | I127: دون المستوى | J127: 19 | K127: 15 | L127: 34 | M127: جيد | N127: 5 | O127: 9 | P127: 14 | Q127: دون المستوى | R127: 14 | S127: 18 | T127: 32 | U127: مقبول | V127: 14 | W127: 8 | X127: 22 | Y127: دون المستوى | Z127: 13 | AA127: 0 | AB127: 3 | AC127: دون المستوى | AD127: 124 | AE127: دون المستوى | AF127: 0.3542857143 | AG127: =IF(A127="","",IF(AF127="غ","غائب",IF(COUNTIF(AD$2:$AD127,AD127)=1,OrdeUP100(RANK(AD127,$AD$2:$AD$311)),OrdeUP100(RANK(AD127,$AD$2:$AD$311))&" مكرّر "))) -> مئتين وسبعة مكرّر
A128: a127 | B128: 1 | C128: 11 | D128: 12 | E128: دون المستوى | F128: 13 | G128: 8 | H128: 21 | I128: دون المستوى | J128: 18 | K128: 1 | L128: 19 | M128: دون المستوى | N128: 2 | O128: 19 | P128: 21 | Q128: دون المستوى | R128: 8 | S128: 11 | T128: 19 | U128: دون المستوى | V128: 18 | W128: 16 | X128: 34 | Y128: جيد | Z128: 14 | AA128: 5 | AB128: 13 | AC128: دون المستوى | AD128: 139 | AE128: دون المستوى | AF128: 0.3971428571 | AG128: =IF(A128="","",IF(AF128="غ","غائب",IF(COUNTIF(AD$2:$AD128,AD128)=1,OrdeUP100(RANK(AD128,$AD$2:$AD$311)),OrdeUP100(RANK(AD128,$AD$2:$AD$311))&" مكرّر "))) -> مئة والخامس والعشرون مكرّر
A129: a128 | B129: 6 | C129: 14 | D129: 20 | E129: دون المستوى | F129: 12 | G129: 1 | H129: 13 | I129: دون المستوى | J129: 3 | K129: 16 | L129: 19 | M129: دون المستوى | N129: 18 | O129: 0 | P129: 18 | Q129: دون المستوى | R129: 13 | S129: 0 | T129: 13 | U129: دون المستوى | V129: 12 | W129: 18 | X129: 30 | Y129: مقبول | Z129: 1 | AA129: 9 | AB129: 6 | AC129: دون المستوى | AD129: 119 | AE129: دون المستوى | AF129: 0.34 | AG129: =IF(A129="","",IF(AF129="غ","غائب",IF(COUNTIF(AD$2:$AD129,AD129)=1,OrdeUP100(RANK(AD129,$AD$2:$AD$311)),OrdeUP100(RANK(AD129,$AD$2:$AD$311))&" مكرّر "))) -> مئتين والتّاسع والعشرون مكرّر
A130: a129 | B130: 19 | C130: 19 | D130: 38 | E130: =IF(D130="","",VLOOKUP(D130,تقدير,2,1)) -> جيد جداً | F130: 18 | G130: 20 | H130: 38 | I130: =IF(H130="","",VLOOKUP(H130,تقدير,2,1)) -> جيد جداً | J130: 2 | K130: 5 | L130: 7 | M130: =IF(L130="","",VLOOKUP(L130,تقدير,2,1)) -> دون المستوى | N130: 18 | O130: 14 | P130: 32 | Q130: =IF(P130="","",VLOOKUP(P130,تقدير,2,1)) -> مقبول | R130: 8 | S130: 10 | T130: 18 | U130: =IF(T130="","",VLOOKUP(T130,تقدير,2,1)) -> دون المستوى | V130: 9 | W130: 14 | X130: 23 | Y130: =IF(X130="","",VLOOKUP(X130,تقدير,2,1)) -> دون المستوى | Z130: 0 | AA130: 10 | AB130: 9 | AC130: =IF(AB130="","",VLOOKUP(AB130,تقدير,2,1)) -> دون المستوى | AD130: 165 | AE130: =IF(A130="","",IF(AD130="","",IF(AD130="غ","غائب",VLOOKUP((AD130/350)*100/(2),تقدير,2,1)))) -> دون المستوى | AF130: 0.4714285714 | AG130: =IF(A130="","",IF(AF130="غ","غائب",IF(COUNTIF(AD$2:$AD130,AD130)=1,OrdeUP100(RANK(AD130,$AD$2:$AD$311)),OrdeUP100(RANK(AD130,$AD$2:$AD$311))&" مكرّر "))) -> الثّالث والعشرون
A131: a130 | B131: 6 | C131: 2 | D131: 8 | E131: دون المستوى | F131: 7 | G131: 20 | H131: =IF(A131="","",IF(AND(F131="غ",G131="غ"),"غ",SUM(F131:G131))) -> 27 | I131: مقبول | J131: 14 | K131: 2 | L131: =IF(A131="","",IF(AND(J131="غ",K131="غ"),"غ",SUM(J131:K131))) -> 16 | M131: دون المستوى | N131: 2 | O131: 7 | P131: =IF(A131="","",IF(AND(N131="غ",O131="غ"),"غ",SUM(N131:O131))) -> 9 | Q131: دون المستوى | R131: 15 | S131: 3 | T131: =IF(A131="","",IF(AND(R131="غ",S131="غ"),"غ",SUM(R131:S131))) -> 18 | U131: دون المستوى | V131: 16 | W131: 10 | X131: =IF(A131="","",IF(AND(V131="غ",W131="غ"),"غ",SUM(V131:W131))) -> 26 | Y131: مقبول | Z131: 10 | AA131: 12 | AB131: 3 | AC131: دون المستوى | AD131: =IF(A131="","",IF(AND(D131="غ",H131="غ",L131="غ",P131="غ",T131="غ",X131="غ",AB131="غ"),"غ",SUM(D131,H131,L131,P131,T131,X131,AB131))) -> 107 | AE131: دون المستوى | AF131: =IF(A131="","",IF(AD131="غ","غ",AD131/350)) -> 0.3057142857 | AG131: =IF(A131="","",IF(AF131="غ","غائب",IF(COUNTIF(AD$2:$AD131,AD131)=1,OrdeUP100(RANK(AD131,$AD$2:$AD$311)),OrdeUP100(RANK(AD131,$AD$2:$AD$311))&" مكرّر "))) -> مئتين والحادي والسّبعون
A132: a131 | B132: 19 | C132: 19 | D132: 38 | E132: جيد جداً | F132: 4 | G132: 8 | H132: 12 | I132: دون المستوى | J132: 5 | K132: 16 | L132: 21 | M132: دون المستوى | N132: 5 | O132: 2 | P132: 7 | Q132: دون المستوى | R132: 9 | S132: 0 | T132: 9 | U132: دون المستوى | V132: 9 | W132: 16 | X132: 25 | Y132: مقبول | Z132: 7 | AA132: 19 | AB132: 10 | AC132: دون المستوى | AD132: 122 | AE132: دون المستوى | AF132: 0.3485714286 | AG132: =IF(A132="","",IF(AF132="غ","غائب",IF(COUNTIF(AD$2:$AD132,AD132)=1,OrdeUP100(RANK(AD132,$AD$2:$AD$311)),OrdeUP100(RANK(AD132,$AD$2:$AD$311))&" مكرّر "))) -> مئتين والسّابع عشر مكرّر
A133: a132 | B133: 20 | C133: 0 | D133: 20 | E133: دون المستوى | F133: 12 | G133: 9 | H133: 21 | I133: دون المستوى | J133: 7 | K133: 5 | L133: 12 | M133: دون المستوى | N133: 10 | O133: 4 | P133: 14 | Q133: دون المستوى | R133: 1 | S133: 10 | T133: 11 | U133: دون المستوى | V133: 20 | W133: 13 | X133: 33 | Y133: جيد | Z133: 1 | AA133: 9 | AB133: 18 | AC133: دون المستوى | AD133: 129 | AE133: دون المستوى | AF133: 0.3685714286 | AG133: =IF(A133="","",IF(AF133="غ","غائب",IF(COUNTIF(AD$2:$AD133,AD133)=1,OrdeUP100(RANK(AD133,$AD$2:$AD$311)),OrdeUP100(RANK(AD133,$AD$2:$AD$311))&" مكرّر "))) -> مئة والسّادس والثّمانون
A134: a133 | B134: 5 | C134: 13 | D134: 18 | E134: دون المستوى | F134: 2 | G134: 18 | H134: 20 | I134: دون المستوى | J134: 3 | K134: 19 | L134: 22 | M134: دون المستوى | N134: 3 | O134: 3 | P134: 6 | Q134: دون المستوى | R134: 16 | S134: 14 | T134: 30 | U134: مقبول | V134: 18 | W134: 16 | X134: 34 | Y134: جيد | Z134: 15 | AA134: 11 | AB134: 7 | AC134: دون المستوى | AD134: 137 | AE134: دون المستوى | AF134: 0.3914285714 | AG134: =IF(A134="","",IF(AF134="غ","غائب",IF(COUNTIF(AD$2:$AD134,AD134)=1,OrdeUP100(RANK(AD134,$AD$2:$AD$311)),OrdeUP100(RANK(AD134,$AD$2:$AD$311))&" مكرّر "))) -> مئة والحادي والأربعون مكرّر
A135: a134 | B135: 16 | C135: 13 | D135: 29 | E135: مقبول | F135: 9 | G135: 10 | H135: 19 | I135: دون المستوى | J135: 20 | K135: 2 | L135: 22 | M135: دون المستوى | N135: 19 | O135: 13 | P135: 32 | Q135: مقبول | R135: 3 | S135: 13 | T135: 16 | U135: دون المستوى | V135: 20 | W135: 7 | X135: 27 | Y135: مقبول | Z135: 14 | AA135: 9 | AB135: 11 | AC135: دون المستوى | AD135: 156 | AE135: دون المستوى | AF135: 0.4457142857 | AG135: =IF(A135="","",IF(AF135="غ","غائب",IF(COUNTIF(AD$2:$AD135,AD135)=1,OrdeUP100(RANK(AD135,$AD$2:$AD$311)),OrdeUP100(RANK(AD135,$AD$2:$AD$311))&" مكرّر "))) -> السّادس والثّلاثون
A136: a135 | B136: 4 | C136: 12 | D136: 16 | E136: دون المستوى | F136: 4 | G136: 12 | H136: 16 | I136: دون المستوى | J136: 12 | K136: 1 | L136: 13 | M136: دون المستوى | N136: 19 | O136: 15 | P136: 34 | Q136: جيد | R136: 19 | S136: 11 | T136: 30 | U136: مقبول | V136: 19 | W136: 3 | X136: 22 | Y136: دون المستوى | Z136: 19 | AA136: 16 | AB136: 11 | AC136: دون المستوى | AD136: 142 | AE136: دون المستوى | AF136: 0.4057142857 | AG136: =IF(A136="","",IF(AF136="غ","غائب",IF(COUNTIF(AD$2:$AD136,AD136)=1,OrdeUP100(RANK(AD136,$AD$2:$AD$311)),OrdeUP100(RANK(AD136,$AD$2:$AD$311))&" مكرّر "))) -> مئة وخمسة مكرّر
A137: a136 | B137: 13 | C137: 3 | D137: 16 | E137: دون المستوى | F137: 2 | G137: 2 | H137: 4 | I137: دون المستوى | J137: 15 | K137: 13 | L137: 28 | M137: مقبول | N137: 6 | O137: 6 | P137: 12 | Q137: دون المستوى | R137: 19 | S137: 18 | T137: 37 | U137: جيد | V137: 19 | W137: 12 | X137: 31 | Y137: مقبول | Z137: 11 | AA137: 3 | AB137: 3 | AC137: دون المستوى | AD137: 131 | AE137: دون المستوى | AF137: 0.3742857143 | AG137: =IF(A137="","",IF(AF137="غ","غائب",IF(COUNTIF(AD$2:$AD137,AD137)=1,OrdeUP100(RANK(AD137,$AD$2:$AD$311)),OrdeUP100(RANK(AD137,$AD$2:$AD$311))&" مكرّر "))) -> مئة والخامس والسّبعون
A138: a137 | B138: 20 | C138: 8 | D138: 28 | E138: مقبول | F138: 8 | G138: 4 | H138: 12 | I138: دون المستوى | J138: 17 | K138: 0 | L138: 17 | M138: دون المستوى | N138: 2 | O138: 17 | P138: 19 | Q138: دون المستوى | R138: 18 | S138: 16 | T138: 34 | U138: جيد | V138: 17 | W138: 11 | X138: 28 | Y138: مقبول | Z138: 13 | AA138: 11 | AB138: 2 | AC138: دون المستوى | AD138: 140 | AE138: دون المستوى | AF138: 0.4 | AG138: =IF(A138="","",IF(AF138="غ","غائب",IF(COUNTIF(AD$2:$AD138,AD138)=1,OrdeUP100(RANK(AD138,$AD$2:$AD$311)),OrdeUP100(RANK(AD138,$AD$2:$AD$311))&" مكرّر "))) -> مئة والثّامن عشر مكرّر
A139: a138 | B139: 17 | C139: 20 | D139: 37 | E139: جيد | F139: 6 | G139: 15 | H139: 21 | I139: دون المستوى | J139: 7 | K139: 3 | L139: 10 | M139: دون المستوى | N139: 6 | O139: 12 | P139: 18 | Q139: دون المستوى | R139: 2 | S139: 0 | T139: 2 | U139: دون المستوى | V139: 19 | W139: 14 | X139: 33 | Y139: جيد | Z139: 5 | AA139: 17 | AB139: 19 | AC139: دون المستوى | AD139: 140 | AE139: دون المستوى | AF139: 0.4 | AG139: =IF(A139="","",IF(AF139="غ","غائب",IF(COUNTIF(AD$2:$AD139,AD139)=1,OrdeUP100(RANK(AD139,$AD$2:$AD$311)),OrdeUP100(RANK(AD139,$AD$2:$AD$311))&" مكرّر "))) -> مئة والثّامن عشر مكرّر
A140: a139 | B140: 12 | C140: 3 | D140: 15 | E140: دون المستوى | F140: 7 | G140: 6 | H140: 13 | I140: دون المستوى | J140: 1 | K140: 10 | L140: 11 | M140: دون المستوى | N140: 11 | O140: 16 | P140: 27 | Q140: مقبول | R140: 20 | S140: 5 | T140: 25 | U140: مقبول | V140: 17 | W140: 5 | X140: 22 | Y140: دون المستوى | Z140: 7 | AA140: 9 | AB140: 1 | AC140: دون المستوى | AD140: 114 | AE140: دون المستوى | AF140: 0.3257142857 | AG140: =IF(A140="","",IF(AF140="غ","غائب",IF(COUNTIF(AD$2:$AD140,AD140)=1,OrdeUP100(RANK(AD140,$AD$2:$AD$311)),OrdeUP100(RANK(AD140,$AD$2:$AD$311))&" مكرّر "))) -> مئتين والسّادس والأربعون مكرّر
A141: a140 | B141: 0 | C141: 6 | D141: 6 | E141: دون المستوى | F141: 15 | G141: 11 | H141: 26 | I141: مقبول | J141: 17 | K141: 0 | L141: 17 | M141: دون المستوى | N141: 5 | O141: 12 | P141: 17 | Q141: دون المستوى | R141: 10 | S141: 2 | T141: 12 | U141: دون المستوى | V141: 4 | W141: 8 | X141: 12 | Y141: دون المستوى | Z141: 4 | AA141: 14 | AB141: 8 | AC141: دون المستوى | AD141: 98 | AE141: دون المستوى | AF141: 0.28 | AG141: =IF(A141="","",IF(AF141="غ","غائب",IF(COUNTIF(AD$2:$AD141,AD141)=1,OrdeUP100(RANK(AD141,$AD$2:$AD$311)),OrdeUP100(RANK(AD141,$AD$2:$AD$311))&" مكرّر "))) -> مئتين والخامس والتّسعون مكرّر
A142: a141 | B142: 12 | C142: 16 | D142: 28 | E142: مقبول | F142: 7 | G142: 4 | H142: 11 | I142: دون المستوى | J142: 16 | K142: 1 | L142: 17 | M142: دون المستوى | N142: 6 | O142: 0 | P142: 6 | Q142: دون المستوى | R142: 16 | S142: 10 | T142: 26 | U142: مقبول | V142: 14 | W142: 15 | X142: 29 | Y142: مقبول | Z142: =RANDBETWEEN(0,20) -> 20 | AA142: 18 | AB142: 7 | AC142: دون المستوى | AD142: 124 | AE142: دون المستوى | AF142: 0.3542857143 | AG142: =IF(A142="","",IF(AF142="غ","غائب",IF(COUNTIF(AD$2:$AD142,AD142)=1,OrdeUP100(RANK(AD142,$AD$2:$AD$311)),OrdeUP100(RANK(AD142,$AD$2:$AD$311))&" مكرّر "))) -> مئتين وسبعة مكرّر
A143: a142 | B143: 5 | C143: 20 | D143: 25 | E143: مقبول | F143: 10 | G143: 2 | H143: 12 | I143: دون المستوى | J143: 17 | K143: 18 | L143: 35 | M143: جيد | N143: 19 | O143: 4 | P143: 23 | Q143: دون المستوى | R143: 19 | S143: 17 | T143: 36 | U143: جيد | V143: 17 | W143: 9 | X143: 26 | Y143: مقبول | Z143: 15 | AA143: 4 | AB143: 11 | AC143: دون المستوى | AD143: 168 | AE143: دون المستوى | AF143: 0.48 | AG143: =IF(A143="","",IF(AF143="غ","غائب",IF(COUNTIF(AD$2:$AD143,AD143)=1,OrdeUP100(RANK(AD143,$AD$2:$AD$311)),OrdeUP100(RANK(AD143,$AD$2:$AD$311))&" مكرّر "))) -> الرّابع عشر مكرّر
A144: a143 | B144: 10 | C144: 7 | D144: 17 | E144: دون المستوى | F144: 3 | G144: 3 | H144: 6 | I144: دون المستوى | J144: 4 | K144: 14 | L144: 18 | M144: دون المستوى | N144: 8 | O144: 0 | P144: 8 | Q144: دون المستوى | R144: 10 | S144: 19 | T144: 29 | U144: مقبول | V144: 20 | W144: 8 | X144: 28 | Y144: مقبول | Z144: 1 | AA144: 19 | AB144: 12 | AC144: دون المستوى | AD144: 118 | AE144: دون المستوى | AF144: 0.3371428571 | AG144: =IF(A144="","",IF(AF144="غ","غائب",IF(COUNTIF(AD$2:$AD144,AD144)=1,OrdeUP100(RANK(AD144,$AD$2:$AD$311)),OrdeUP100(RANK(AD144,$AD$2:$AD$311))&" مكرّر "))) -> مئتين والثّاني والثّلاثون مكرّر
A145: a144 | B145: 2 | C145: 19 | D145: 21 | E145: دون المستوى | F145: 20 | G145: 13 | H145: 33 | I145: جيد | J145: 13 | K145: 5 | L145: 18 | M145: دون المستوى | N145: 7 | O145: 17 | P145: 24 | Q145: دون المستوى | R145: 0 | S145: 13 | T145: 13 | U145: دون المستوى | V145: 8 | W145: 8 | X145: 16 | Y145: دون المستوى | Z145: 17 | AA145: 15 | AB145: 6 | AC145: دون المستوى | AD145: 131 | AE145: دون المستوى | AF145: 0.3742857143 | AG145: =IF(A145="","",IF(AF145="غ","غائب",IF(COUNTIF(AD$2:$AD145,AD145)=1,OrdeUP100(RANK(AD145,$AD$2:$AD$311)),OrdeUP100(RANK(AD145,$AD$2:$AD$311))&" مكرّر "))) -> مئة والخامس والسّبعون مكرّر
A146: a145 | B146: 17 | C146: 20 | D146: 37 | E146: جيد | F146: 6 | G146: 8 | H146: 14 | I146: دون المستوى | J146: 12 | K146: 8 | L146: 20 | M146: دون المستوى | N146: 20 | O146: 13 | P146: 33 | Q146: جيد | R146: 11 | S146: 9 | T146: 20 | U146: دون المستوى | V146: 16 | W146: 16 | X146: 32 | Y146: مقبول | Z146: 1 | AA146: 16 | AB146: 19 | AC146: دون المستوى | AD146: 175 | AE146: مقبول | AF146: 0.5 | AG146: =IF(A146="","",IF(AF146="غ","غائب",IF(COUNTIF(AD$2:$AD146,AD146)=1,OrdeUP100(RANK(AD146,$AD$2:$AD$311)),OrdeUP100(RANK(AD146,$AD$2:$AD$311))&" مكرّر "))) -> الثّامن مكرّر
A147: a146 | B147: 14 | C147: 1 | D147: 15 | E147: دون المستوى | F147: 8 | G147: 19 | H147: 27 | I147: مقبول | J147: 9 | K147: 17 | L147: 26 | M147: مقبول | N147: 13 | O147: 20 | P147: 33 | Q147: جيد | R147: 20 | S147: 6 | T147: 26 | U147: مقبول | V147: 10 | W147: 0 | X147: 10 | Y147: دون المستوى | Z147: 1 | AA147: 14 | AB147: 10 | AC147: دون المستوى | AD147: 147 | AE147: دون المستوى | AF147: 0.42 | AG147: =IF(A147="","",IF(AF147="غ","غائب",IF(COUNTIF(AD$2:$AD147,AD147)=1,OrdeUP100(RANK(AD147,$AD$2:$AD$311)),OrdeUP100(RANK(AD147,$AD$2:$AD$311))&" مكرّر "))) -> التّاسع والسّبعون
A148: a147 | B148: 16 | C148: 17 | D148: 33 | E148: جيد | F148: 6 | G148: 19 | H148: 25 | I148: مقبول | J148: 15 | K148: 3 | L148: 18 | M148: دون المستوى | N148: 15 | O148: 10 | P148: 25 | Q148: مقبول | R148: 19 | S148: 19 | T148: 38 | U148: جيد جداً | V148: 5 | W148: 11 | X148: 16 | Y148: دون المستوى | Z148: 17 | AA148: 7 | AB148: 8 | AC148: دون المستوى | AD148: 163 | AE148: دون المستوى | AF148: 0.4657142857 | AG148: =IF(A148="","",IF(AF148="غ","غائب",IF(COUNTIF(AD$2:$AD148,AD148)=1,OrdeUP100(RANK(AD148,$AD$2:$AD$311)),OrdeUP100(RANK(AD148,$AD$2:$AD$311))&" مكرّر "))) -> الخامس والعشرون
A149: a148 | B149: 15 | C149: 8 | D149: 23 | E149: دون المستوى | F149: 3 | G149: 19 | H149: 22 | I149: دون المستوى | J149: 2 | K149: 18 | L149: 20 | M149: دون المستوى | N149: 6 | O149: 13 | P149: 19 | Q149: دون المستوى | R149: 17 | S149: 3 | T149: 20 | U149: دون المستوى | V149: 4 | W149: 20 | X149: 24 | Y149: دون المستوى | Z149: 0 | AA149: 14 | AB149: 20 | AC149: دون المستوى | AD149: 148 | AE149: دون المستوى | AF149: 0.4228571429 | AG149: =IF(A149="","",IF(AF149="غ","غائب",IF(COUNTIF(AD$2:$AD149,AD149)=1,OrdeUP100(RANK(AD149,$AD$2:$AD$311)),OrdeUP100(RANK(AD149,$AD$2:$AD$311))&" مكرّر "))) -> التّاسع والستون مكرّر
A150: a149 | B150: 7 | C150: 10 | D150: 17 | E150: دون المستوى | F150: 2 | G150: 12 | H150: 14 | I150: دون المستوى | J150: 10 | K150: 6 | L150: 16 | M150: دون المستوى | N150: 17 | O150: 9 | P150: 26 | Q150: مقبول | R150: 4 | S150: 11 | T150: 15 | U150: دون المستوى | V150: 20 | W150: 20 | X150: 40 | Y150: جيد جداً | Z150: 17 | AA150: 20 | AB150: 19 | AC150: دون المستوى | AD150: 147 | AE150: دون المستوى | AF150: 0.42 | AG150: =IF(A150="","",IF(AF150="غ","غائب",IF(COUNTIF(AD$2:$AD150,AD150)=1,OrdeUP100(RANK(AD150,$AD$2:$AD$311)),OrdeUP100(RANK(AD150,$AD$2:$AD$311))&" مكرّر "))) -> التّاسع والسّبعون مكرّر
A151: a150 | B151: 4 | C151: 14 | D151: =IF(A151="","",IF(AND(B151="غ",C151="غ"),"غ",SUM(B151:C151))) -> 18 | E151: دون المستوى | F151: 17 | G151: 6 | H151: 23 | I151: دون المستوى | J151: 6 | K151: 14 | L151: 20 | M151: دون المستوى | N151: 3 | O151: 0 | P151: 3 | Q151: دون المستوى | R151: 12 | S151: 2 | T151: 14 | U151: دون المستوى | V151: 12 | W151: 10 | X151: 22 | Y151: دون المستوى | Z151: 18 | AA151: 2 | AB151: 17 | AC151: دون المستوى | AD151: 117 | AE151: دون المستوى | AF151: 0.3342857143 | AG151: =IF(A151="","",IF(AF151="غ","غائب",IF(COUNTIF(AD$2:$AD151,AD151)=1,OrdeUP100(RANK(AD151,$AD$2:$AD$311)),OrdeUP100(RANK(AD151,$AD$2:$AD$311))&" مكرّر "))) -> مئتين والسّادس والثّلاثون مكرّر
A152: a151 | B152: 4 | C152: 16 | D152: 20 | E152: دون المستوى | F152: 17 | G152: 19 | H152: 36 | I152: جيد | J152: 4 | K152: 1 | L152: 5 | M152: دون المستوى | N152: 15 | O152: 19 | P152: 34 | Q152: جيد | R152: 16 | S152: 18 | T152: 34 | U152: جيد | V152: 20 | W152: 5 | X152: 25 | Y152: مقبول | Z152: 18 | AA152: 20 | AB152: 12 | AC152: دون المستوى | AD152: 166 | AE152: دون المستوى | AF152: 0.4742857143 | AG152: =IF(A152="","",IF(AF152="غ","غائب",IF(COUNTIF(AD$2:$AD152,AD152)=1,OrdeUP100(RANK(AD152,$AD$2:$AD$311)),OrdeUP100(RANK(AD152,$AD$2:$AD$311))&" مكرّر "))) -> الحادي والعشرون
A153: a152 | B153: 19 | C153: 6 | D153: 25 | E153: مقبول | F153: 8 | G153: 7 | H153: 15 | I153: دون المستوى | J153: 9 | K153: 18 | L153: 27 | M153: مقبول | N153: 2 | O153: 2 | P153: 4 | Q153: دون المستوى | R153: 13 | S153: 6 | T153: 19 | U153: دون المستوى | V153: 2 | W153: 9 | X153: 11 | Y153: دون المستوى | Z153: 15 | AA153: 5 | AB153: 16 | AC153: دون المستوى | AD153: 117 | AE153: دون المستوى | AF153: 0.3342857143 | AG153: =IF(A153="","",IF(AF153="غ","غائب",IF(COUNTIF(AD$2:$AD153,AD153)=1,OrdeUP100(RANK(AD153,$AD$2:$AD$311)),OrdeUP100(RANK(AD153,$AD$2:$AD$311))&" مكرّر "))) -> مئتين والسّادس والثّلاثون مكرّر
A154: a153 | B154: 3 | C154: 12 | D154: 15 | E154: دون المستوى | F154: 6 | G154: 7 | H154: 13 | I154: دون المستوى | J154: 19 | K154: 10 | L154: 29 | M154: مقبول | N154: 17 | O154: 19 | P154: 36 | Q154: جيد | R154: 7 | S154: 0 | T154: 7 | U154: دون المستوى | V154: 2 | W154: 3 | X154: 5 | Y154: دون المستوى | Z154: 10 | AA154: 20 | AB154: 4 | AC154: دون المستوى | AD154: 109 | AE154: دون المستوى | AF154: 0.3114285714 | AG154: =IF(A154="","",IF(AF154="غ","غائب",IF(COUNTIF(AD$2:$AD154,AD154)=1,OrdeUP100(RANK(AD154,$AD$2:$AD$311)),OrdeUP100(RANK(AD154,$AD$2:$AD$311))&" مكرّر "))) -> مئتين والخامس والستون مكرّر
A155: a154 | B155: 4 | C155: 8 | D155: 12 | E155: دون المستوى | F155: 16 | G155: 16 | H155: 32 | I155: مقبول | J155: 6 | K155: 18 | L155: 24 | M155: دون المستوى | N155: 14 | O155: 12 | P155: 26 | Q155: مقبول | R155: 16 | S155: 2 | T155: 18 | U155: دون المستوى | V155: 15 | W155: 8 | X155: 23 | Y155: دون المستوى | Z155: 3 | AA155: 17 | AB155: 4 | AC155: دون المستوى | AD155: 139 | AE155: دون المستوى | AF155: 0.3971428571 | AG155: =IF(A155="","",IF(AF155="غ","غائب",IF(COUNTIF(AD$2:$AD155,AD155)=1,OrdeUP100(RANK(AD155,$AD$2:$AD$311)),OrdeUP100(RANK(AD155,$AD$2:$AD$311))&" مكرّر "))) -> مئة والخامس والعشرون مكرّر
A156: a155 | B156: 5 | C156: 2 | D156: 7 | E156: دون المستوى | F156: 10 | G156: 18 | H156: 28 | I156: مقبول | J156: 20 | K156: 10 | L156: 30 | M156: مقبول | N156: 19 | O156: 13 | P156: 32 | Q156: مقبول | R156: 0 | S156: 17 | T156: 17 | U156: دون المستوى | V156: 8 | W156: 1 | X156: 9 | Y156: دون المستوى | Z156: 18 | AA156: 19 | AB156: 13 | AC156: دون المستوى | AD156: 136 | AE156: دون المستوى | AF156: 0.3885714286 | AG156: =IF(A156="","",IF(AF156="غ","غائب",IF(COUNTIF(AD$2:$AD156,AD156)=1,OrdeUP100(RANK(AD156,$AD$2:$AD$311)),OrdeUP100(RANK(AD156,$AD$2:$AD$311))&" مكرّر "))) -> مئة والتّاسع والأربعون مكرّر
A157: a156 | B157: 17 | C157: 20 | D157: 37 | E157: جيد | F157: 12 | G157: 3 | H157: 15 | I157: دون المستوى | J157: 12 | K157: 2 | L157: 14 | M157: دون المستوى | N157: 4 | O157: 5 | P157: 9 | Q157: دون المستوى | R157: 0 | S157: 8 | T157: 8 | U157: دون المستوى | V157: 8 | W157: 5 | X157: 13 | Y157: دون المستوى | Z157: 19 | AA157: 9 | AB157: 14 | AC157: دون المستوى | AD157: 110 | AE157: دون المستوى | AF157: 0.3142857143 | AG157: =IF(A157="","",IF(AF157="غ","غائب",IF(COUNTIF(AD$2:$AD157,AD157)=1,OrdeUP100(RANK(AD157,$AD$2:$AD$311)),OrdeUP100(RANK(AD157,$AD$2:$AD$311))&" مكرّر "))) -> مئتين والثّاني والستون مكرّر
A158: a157 | B158: 12 | C158: 0 | D158: 12 | E158: دون المستوى | F158: 19 | G158: 19 | H158: 38 | I158: جيد جداً | J158: 0 | K158: 4 | L158: 4 | M158: دون المستوى | N158: 8 | O158: 9 | P158: 17 | Q158: دون المستوى | R158: 13 | S158: 3 | T158: 16 | U158: دون المستوى | V158: 15 | W158: 10 | X158: 25 | Y158: مقبول | Z158: 6 | AA158: 7 | AB158: 8 | AC158: دون المستوى | AD158: 120 | AE158: دون المستوى | AF158: 0.3428571429 | AG158: =IF(A158="","",IF(AF158="غ","غائب",IF(COUNTIF(AD$2:$AD158,AD158)=1,OrdeUP100(RANK(AD158,$AD$2:$AD$311)),OrdeUP100(RANK(AD158,$AD$2:$AD$311))&" مكرّر "))) -> مئتين والخامس والعشرون
A159: a158 | B159: 14 | C159: 20 | D159: 34 | E159: جيد | F159: 3 | G159: 17 | H159: 20 | I159: دون المستوى | J159: 14 | K159: 2 | L159: 16 | M159: دون المستوى | N159: 1 | O159: 12 | P159: 13 | Q159: دون المستوى | R159: 8 | S159: 2 | T159: 10 | U159: دون المستوى | V159: 8 | W159: 2 | X159: 10 | Y159: دون المستوى | Z159: 18 | AA159: 9 | AB159: 8 | AC159: دون المستوى | AD159: 111 | AE159: دون المستوى | AF159: 0.3171428571 | AG159: =IF(A159="","",IF(AF159="غ","غائب",IF(COUNTIF(AD$2:$AD159,AD159)=1,OrdeUP100(RANK(AD159,$AD$2:$AD$311)),OrdeUP100(RANK(AD159,$AD$2:$AD$311))&" مكرّر "))) -> مئتين والتّاسع والخمسون
A160: a159 | B160: 14 | C160: 5 | D160: 19 | E160: دون المستوى | F160: 1 | G160: 2 | H160: 3 | I160: دون المستوى | J160: 16 | K160: 5 | L160: 21 | M160: دون المستوى | N160: 10 | O160: 20 | P160: 30 | Q160: مقبول | R160: 19 | S160: 12 | T160: 31 | U160: مقبول | V160: 14 | W160: 19 | X160: 33 | Y160: جيد | Z160: 19 | AA160: 7 | AB160: 17 | AC160: دون المستوى | AD160: 154 | AE160: دون المستوى | AF160: 0.44 | AG160: =IF(A160="","",IF(AF160="غ","غائب",IF(COUNTIF(AD$2:$AD160,AD160)=1,OrdeUP100(RANK(AD160,$AD$2:$AD$311)),OrdeUP100(RANK(AD160,$AD$2:$AD$311))&" مكرّر "))) -> الرّابع والأربعون مكرّر
A161: a160 | B161: 6 | C161: 13 | D161: 19 | E161: دون المستوى | F161: 18 | G161: 1 | H161: 19 | I161: دون المستوى | J161: 16 | K161: 14 | L161: 30 | M161: مقبول | N161: 13 | O161: 1 | P161: 14 | Q161: دون المستوى | R161: 16 | S161: 20 | T161: 36 | U161: جيد | V161: 8 | W161: 5 | X161: 13 | Y161: دون المستوى | Z161: 5 | AA161: 3 | AB161: 0 | AC161: دون المستوى | AD161: 131 | AE161: دون المستوى | AF161: 0.3742857143 | AG161: =IF(A161="","",IF(AF161="غ","غائب",IF(COUNTIF(AD$2:$AD161,AD161)=1,OrdeUP100(RANK(AD161,$AD$2:$AD$311)),OrdeUP100(RANK(AD161,$AD$2:$AD$311))&" مكرّر "))) -> مئة والخامس والسّبعون مكرّر
A162: a161 | B162: 0 | C162: 13 | D162: 13 | E162: دون المستوى | F162: 2 | G162: 5 | H162: 7 | I162: دون المستوى | J162: 17 | K162: 18 | L162: 35 | M162: جيد | N162: 5 | O162: 11 | P162: 16 | Q162: دون المستوى | R162: 5 | S162: 18 | T162: 23 | U162: دون المستوى | V162: 13 | W162: 20 | X162: 33 | Y162: جيد | Z162: =RANDBETWEEN(0,20) -> 6 | AA162: 20 | AB162: 19 | AC162: دون المستوى | AD162: 146 | AE162: دون المستوى | AF162: 0.4171428571 | AG162: =IF(A162="","",IF(AF162="غ","غائب",IF(COUNTIF(AD$2:$AD162,AD162)=1,OrdeUP100(RANK(AD162,$AD$2:$AD$311)),OrdeUP100(RANK(AD162,$AD$2:$AD$311))&" مكرّر "))) -> الحادي والثّمانون مكرّر
A163: a162 | B163: 13 | C163: 9 | D163: 22 | E163: دون المستوى | F163: 6 | G163: 20 | H163: 26 | I163: مقبول | J163: 13 | K163: 6 | L163: 19 | M163: دون المستوى | N163: 14 | O163: 11 | P163: 25 | Q163: مقبول | R163: 3 | S163: 8 | T163: 11 | U163: دون المستوى | V163: 17 | W163: 17 | X163: 34 | Y163: جيد | Z163: 20 | AA163: 5 | AB163: 1 | AC163: دون المستوى | AD163: 138 | AE163: دون المستوى | AF163: 0.3942857143 | AG163: =IF(A163="","",IF(AF163="غ","غائب",IF(COUNTIF(AD$2:$AD163,AD163)=1,OrdeUP100(RANK(AD163,$AD$2:$AD$311)),OrdeUP100(RANK(AD163,$AD$2:$AD$311))&" مكرّر "))) -> مئة والسّابع والثّلاثون مكرّر
A164: a163 | B164: 4 | C164: 0 | D164: 4 | E164: دون المستوى | F164: 5 | G164: 15 | H164: 20 | I164: دون المستوى | J164: 3 | K164: 18 | L164: 21 | M164: دون المستوى | N164: 10 | O164: 16 | P164: 26 | Q164: مقبول | R164: 11 | S164: 20 | T164: 31 | U164: مقبول | V164: 11 | W164: 12 | X164: 23 | Y164: دون المستوى | Z164: 1 | AA164: 0 | AB164: 8 | AC164: دون المستوى | AD164: 133 | AE164: دون المستوى | AF164: 0.38 | AG164: =IF(A164="","",IF(AF164="غ","غائب",IF(COUNTIF(AD$2:$AD164,AD164)=1,OrdeUP100(RANK(AD164,$AD$2:$AD$311)),OrdeUP100(RANK(AD164,$AD$2:$AD$311))&" مكرّر "))) -> مئة والثّاني والستون مكرّر
A165: a164 | B165: 9 | C165: 8 | D165: 17 | E165: دون المستوى | F165: 12 | G165: 6 | H165: 18 | I165: دون المستوى | J165: 19 | K165: 6 | L165: 25 | M165: مقبول | N165: 17 | O165: 16 | P165: 33 | Q165: جيد | R165: 2 | S165: 17 | T165: 19 | U165: دون المستوى | V165: 4 | W165: 15 | X165: 19 | Y165: دون المستوى | Z165: 2 | AA165: 18 | AB165: 20 | AC165: دون المستوى | AD165: 151 | AE165: دون المستوى | AF165: 0.4314285714 | AG165: =IF(A165="","",IF(AF165="غ","غائب",IF(COUNTIF(AD$2:$AD165,AD165)=1,OrdeUP100(RANK(AD165,$AD$2:$AD$311)),OrdeUP100(RANK(AD165,$AD$2:$AD$311))&" مكرّر "))) -> الثّامن والخمسون
A166: a165 | B166: 14 | C166: 3 | D166: 17 | E166: دون المستوى | F166: 17 | G166: 9 | H166: 26 | I166: مقبول | J166: 16 | K166: 6 | L166: 22 | M166: دون المستوى | N166: 4 | O166: 12 | P166: 16 | Q166: دون المستوى | R166: 1 | S166: 9 | T166: 10 | U166: دون المستوى | V166: 10 | W166: 16 | X166: 26 | Y166: مقبول | Z166: 10 | AA166: 8 | AB166: 8 | AC166: دون المستوى | AD166: 125 | AE166: دون المستوى | AF166: 0.3571428571 | AG166: =IF(A166="","",IF(AF166="غ","غائب",IF(COUNTIF(AD$2:$AD166,AD166)=1,OrdeUP100(RANK(AD166,$AD$2:$AD$311)),OrdeUP100(RANK(AD166,$AD$2:$AD$311))&" مكرّر "))) -> مئتين مكرّر
A167: a166 | B167: 20 | C167: 3 | D167: 23 | E167: دون المستوى | F167: 15 | G167: 6 | H167: 21 | I167: دون المستوى | J167: 11 | K167: 14 | L167: 25 | M167: مقبول | N167: 3 | O167: 15 | P167: 18 | Q167: دون المستوى | R167: 20 | S167: 13 | T167: 33 | U167: جيد | V167: 0 | W167: 0 | X167: 0 | Y167: دون المستوى | Z167: 5 | AA167: 13 | AB167: 19 | AC167: دون المستوى | AD167: 139 | AE167: دون المستوى | AF167: 0.3971428571 | AG167: =IF(A167="","",IF(AF167="غ","غائب",IF(COUNTIF(AD$2:$AD167,AD167)=1,OrdeUP100(RANK(AD167,$AD$2:$AD$311)),OrdeUP100(RANK(AD167,$AD$2:$AD$311))&" مكرّر "))) -> مئة والخامس والعشرون مكرّر
A168: a167 | B168: 17 | C168: 9 | D168: 26 | E168: مقبول | F168: 3 | G168: 18 | H168: 21 | I168: دون المستوى | J168: 3 | K168: 4 | L168: 7 | M168: دون المستوى | N168: 17 | O168: 5 | P168: 22 | Q168: دون المستوى | R168: 18 | S168: 5 | T168: 23 | U168: دون المستوى | V168: 8 | W168: 6 | X168: 14 | Y168: دون المستوى | Z168: 3 | AA168: 5 | AB168: 17 | AC168: دون المستوى | AD168: 130 | AE168: دون المستوى | AF168: 0.3714285714 | AG168: =IF(A168="","",IF(AF168="غ","غائب",IF(COUNTIF(AD$2:$AD168,AD168)=1,OrdeUP100(RANK(AD168,$AD$2:$AD$311)),OrdeUP100(RANK(AD168,$AD$2:$AD$311))&" مكرّر "))) -> مئة والحادي والثّمانون
A169: a168 | B169: 0 | C169: 16 | D169: 16 | E169: دون المستوى | F169: 16 | G169: 5 | H169: 21 | I169: دون المستوى | J169: 13 | K169: 7 | L169: 20 | M169: دون المستوى | N169: 6 | O169: 18 | P169: 24 | Q169: دون المستوى | R169: 6 | S169: 7 | T169: 13 | U169: دون المستوى | V169: 20 | W169: 17 | X169: 37 | Y169: جيد | Z169: 8 | AA169: 0 | AB169: 17 | AC169: دون المستوى | AD169: 148 | AE169: دون المستوى | AF169: 0.4228571429 | AG169: =IF(A169="","",IF(AF169="غ","غائب",IF(COUNTIF(AD$2:$AD169,AD169)=1,OrdeUP100(RANK(AD169,$AD$2:$AD$311)),OrdeUP100(RANK(AD169,$AD$2:$AD$311))&" مكرّر "))) -> التّاسع والستون مكرّر
A170: a169 | B170: 20 | C170: 9 | D170: 29 | E170: مقبول | F170: 15 | G170: 5 | H170: 20 | I170: دون المستوى | J170: 16 | K170: 13 | L170: 29 | M170: مقبول | N170: 13 | O170: 16 | P170: 29 | Q170: مقبول | R170: 2 | S170: 3 | T170: 5 | U170: دون المستوى | V170: 8 | W170: 2 | X170: 10 | Y170: دون المستوى | Z170: 11 | AA170: 14 | AB170: 12 | AC170: دون المستوى | AD170: 134 | AE170: دون المستوى | AF170: 0.3828571429 | AG170: =IF(A170="","",IF(AF170="غ","غائب",IF(COUNTIF(AD$2:$AD170,AD170)=1,OrdeUP100(RANK(AD170,$AD$2:$AD$311)),OrdeUP100(RANK(AD170,$AD$2:$AD$311))&" مكرّر "))) -> مئة والسّادس والخمسون مكرّر
A171: a170 | B171: 10 | C171: 10 | D171: 20 | E171: دون المستوى | F171: 7 | G171: 1 | H171: 8 | I171: دون المستوى | J171: 5 | K171: 17 | L171: 22 | M171: دون المستوى | N171: 1 | O171: 19 | P171: 20 | Q171: دون المستوى | R171: 2 | S171: 10 | T171: 12 | U171: دون المستوى | V171: 6 | W171: 17 | X171: 23 | Y171: دون المستوى | Z171: 7 | AA171: 18 | AB171: 14 | AC171: دون المستوى | AD171: 119 | AE171: دون المستوى | AF171: 0.34 | AG171: =IF(A171="","",IF(AF171="غ","غائب",IF(COUNTIF(AD$2:$AD171,AD171)=1,OrdeUP100(RANK(AD171,$AD$2:$AD$311)),OrdeUP100(RANK(AD171,$AD$2:$AD$311))&" مكرّر "))) -> مئتين والتّاسع والعشرون مكرّر
A172: a171 | B172: 19 | C172: 3 | D172: 22 | E172: دون المستوى | F172: 4 | G172: 20 | H172: 24 | I172: دون المستوى | J172: 18 | K172: 8 | L172: 26 | M172: مقبول | N172: 10 | O172: 1 | P172: 11 | Q172: دون المستوى | R172: 7 | S172: 12 | T172: 19 | U172: دون المستوى | V172: 1 | W172: 5 | X172: 6 | Y172: دون المستوى | Z172: 13 | AA172: 18 | AB172: 12 | AC172: دون المستوى | AD172: 120 | AE172: دون المستوى | AF172: 0.3428571429 | AG172: =IF(A172="","",IF(AF172="غ","غائب",IF(COUNTIF(AD$2:$AD172,AD172)=1,OrdeUP100(RANK(AD172,$AD$2:$AD$311)),OrdeUP100(RANK(AD172,$AD$2:$AD$311))&" مكرّر "))) -> مئتين والخامس والعشرون مكرّر
A173: a172 | B173: 9 | C173: 7 | D173: 16 | E173: دون المستوى | F173: 9 | G173: 12 | H173: 21 | I173: دون المستوى | J173: 9 | K173: 20 | L173: 29 | M173: مقبول | N173: 2 | O173: 4 | P173: 6 | Q173: دون المستوى | R173: 7 | S173: 14 | T173: 21 | U173: دون المستوى | V173: 2 | W173: 2 | X173: 4 | Y173: دون المستوى | Z173: 7 | AA173: 0 | AB173: 16 | AC173: دون المستوى | AD173: 113 | AE173: دون المستوى | AF173: 0.3228571429 | AG173: =IF(A173="","",IF(AF173="غ","غائب",IF(COUNTIF(AD$2:$AD173,AD173)=1,OrdeUP100(RANK(AD173,$AD$2:$AD$311)),OrdeUP100(RANK(AD173,$AD$2:$AD$311))&" مكرّر "))) -> مئتين والحادي والخمسون مكرّر
A174: a173 | B174: 19 | C174: 6 | D174: 25 | E174: مقبول | F174: 19 | G174: 16 | H174: 35 | I174: جيد | J174: 12 | K174: 7 | L174: 19 | M174: دون المستوى | N174: 10 | O174: 12 | P174: 22 | Q174: دون المستوى | R174: 8 | S174: 9 | T174: 17 | U174: دون المستوى | V174: 2 | W174: 19 | X174: 21 | Y174: دون المستوى | Z174: 4 | AA174: 0 | AB174: 2 | AC174: دون المستوى | AD174: 141 | AE174: دون المستوى | AF174: 0.4028571429 | AG174: =IF(A174="","",IF(AF174="غ","غائب",IF(COUNTIF(AD$2:$AD174,AD174)=1,OrdeUP100(RANK(AD174,$AD$2:$AD$311)),OrdeUP100(RANK(AD174,$AD$2:$AD$311))&" مكرّر "))) -> مئة والثّاني عشر مكرّر
A175: a174 | B175: 5 | C175: 17 | D175: 22 | E175: دون المستوى | F175: 9 | G175: 11 | H175: 20 | I175: دون المستوى | J175: 1 | K175: 18 | L175: 19 | M175: دون المستوى | N175: 4 | O175: 19 | P175: 23 | Q175: دون المستوى | R175: 19 | S175: 3 | T175: 22 | U175: دون المستوى | V175: 20 | W175: 13 | X175: 33 | Y175: جيد | Z175: 20 | AA175: 10 | AB175: 14 | AC175: دون المستوى | AD175: 153 | AE175: دون المستوى | AF175: 0.4371428571 | AG175: =IF(A175="","",IF(AF175="غ","غائب",IF(COUNTIF(AD$2:$AD175,AD175)=1,OrdeUP100(RANK(AD175,$AD$2:$AD$311)),OrdeUP100(RANK(AD175,$AD$2:$AD$311))&" مكرّر "))) -> الخمسون مكرّر
A176: a175 | B176: 2 | C176: 15 | D176: 17 | E176: دون المستوى | F176: 7 | G176: 7 | H176: 14 | I176: دون المستوى | J176: 1 | K176: 14 | L176: 15 | M176: دون المستوى | N176: 3 | O176: 2 | P176: 5 | Q176: دون المستوى | R176: 9 | S176: 9 | T176: 18 | U176: دون المستوى | V176: 14 | W176: 0 | X176: 14 | Y176: دون المستوى | Z176: 12 | AA176: 3 | AB176: 4 | AC176: دون المستوى | AD176: 87 | AE176: دون المستوى | AF176: 0.2485714286 | AG176: =IF(A176="","",IF(AF176="غ","غائب",IF(COUNTIF(AD$2:$AD176,AD176)=1,OrdeUP100(RANK(AD176,$AD$2:$AD$311)),OrdeUP100(RANK(AD176,$AD$2:$AD$311))&" مكرّر "))) -> ثلاثمائة وستة
A177: a176 | B177: 7 | C177: 11 | D177: 18 | E177: دون المستوى | F177: 9 | G177: 9 | H177: 18 | I177: دون المستوى | J177: 20 | K177: 0 | L177: 20 | M177: دون المستوى | N177: 16 | O177: 6 | P177: 22 | Q177: دون المستوى | R177: 17 | S177: 10 | T177: 27 | U177: مقبول | V177: 14 | W177: 5 | X177: 19 | Y177: دون المستوى | Z177: 19 | AA177: 12 | AB177: 7 | AC177: دون المستوى | AD177: 131 | AE177: دون المستوى | AF177: 0.3742857143 | AG177: =IF(A177="","",IF(AF177="غ","غائب",IF(COUNTIF(AD$2:$AD177,AD177)=1,OrdeUP100(RANK(AD177,$AD$2:$AD$311)),OrdeUP100(RANK(AD177,$AD$2:$AD$311))&" مكرّر "))) -> مئة والخامس والسّبعون مكرّر
A178: a177 | B178: 16 | C178: 15 | D178: 31 | E178: مقبول | F178: 5 | G178: 18 | H178: 23 | I178: دون المستوى | J178: 3 | K178: 17 | L178: 20 | M178: دون المستوى | N178: 14 | O178: 10 | P178: 24 | Q178: دون المستوى | R178: 0 | S178: 0 | T178: 0 | U178: دون المستوى | V178: 6 | W178: 0 | X178: 6 | Y178: دون المستوى | Z178: 19 | AA178: 12 | AB178: 18 | AC178: دون المستوى | AD178: 122 | AE178: دون المستوى | AF178: 0.3485714286 | AG178: =IF(A178="","",IF(AF178="غ","غائب",IF(COUNTIF(AD$2:$AD178,AD178)=1,OrdeUP100(RANK(AD178,$AD$2:$AD$311)),OrdeUP100(RANK(AD178,$AD$2:$AD$311))&" مكرّر "))) -> مئتين والسّابع عشر مكرّر
A179: a178 | B179: 19 | C179: 13 | D179: 32 | E179: مقبول | F179: 17 | G179: 12 | H179: 29 | I179: مقبول | J179: 15 | K179: 0 | L179: 15 | M179: دون المستوى | N179: 1 | O179: 17 | P179: 18 | Q179: دون المستوى | R179: 19 | S179: 4 | T179: 23 | U179: دون المستوى | V179: 13 | W179: 8 | X179: 21 | Y179: دون المستوى | Z179: 16 | AA179: 10 | AB179: 19 | AC179: دون المستوى | AD179: 157 | AE179: دون المستوى | AF179: 0.4485714286 | AG179: =IF(A179="","",IF(AF179="غ","غائب",IF(COUNTIF(AD$2:$AD179,AD179)=1,OrdeUP100(RANK(AD179,$AD$2:$AD$311)),OrdeUP100(RANK(AD179,$AD$2:$AD$311))&" مكرّر "))) -> الرّابع والثّلاثون مكرّر
A180: a179 | B180: 16 | C180: 12 | D180: 28 | E180: مقبول | F180: 15 | G180: 5 | H180: 20 | I180: دون المستوى | J180: 9 | K180: 4 | L180: 13 | M180: دون المستوى | N180: 17 | O180: 7 | P180: 24 | Q180: دون المستوى | R180: 15 | S180: 13 | T180: 28 | U180: مقبول | V180: 10 | W180: 1 | X180: 11 | Y180: دون المستوى | Z180: 20 | AA180: 2 | AB180: 9 | AC180: دون المستوى | AD180: 133 | AE180: دون المستوى | AF180: 0.38 | AG180: =IF(A180="","",IF(AF180="غ","غائب",IF(COUNTIF(AD$2:$AD180,AD180)=1,OrdeUP100(RANK(AD180,$AD$2:$AD$311)),OrdeUP100(RANK(AD180,$AD$2:$AD$311))&" مكرّر "))) -> مئة والثّاني والستون مكرّر
A181: a180 | B181: 1 | C181: 15 | D181: 16 | E181: دون المستوى | F181: 2 | G181: 5 | H181: 7 | I181: دون المستوى | J181: 5 | K181: 12 | L181: 17 | M181: دون المستوى | N181: 3 | O181: 19 | P181: 22 | Q181: دون المستوى | R181: 17 | S181: 6 | T181: 23 | U181: دون المستوى | V181: 18 | W181: 11 | X181: 29 | Y181: مقبول | Z181: 2 | AA181: 12 | AB181: 13 | AC181: دون المستوى | AD181: 127 | AE181: دون المستوى | AF181: 0.3628571429 | AG181: =IF(A181="","",IF(AF181="غ","غائب",IF(COUNTIF(AD$2:$AD181,AD181)=1,OrdeUP100(RANK(AD181,$AD$2:$AD$311)),OrdeUP100(RANK(AD181,$AD$2:$AD$311))&" مكرّر "))) -> مئة والثّاني والتّسعون مكرّر
A182: a181 | B182: 4 | C182: 2 | D182: 6 | E182: دون المستوى | F182: 15 | G182: 20 | H182: 35 | I182: جيد | J182: 17 | K182: 15 | L182: 32 | M182: مقبول | N182: 14 | O182: 18 | P182: 32 | Q182: مقبول | R182: 17 | S182: 9 | T182: 26 | U182: مقبول | V182: 2 | W182: 16 | X182: 18 | Y182: دون المستوى | Z182: =RANDBETWEEN(0,20) -> 9 | AA182: 12 | AB182: 13 | AC182: دون المستوى | AD182: 162 | AE182: دون المستوى | AF182: 0.4628571429 | AG182: =IF(A182="","",IF(AF182="غ","غائب",IF(COUNTIF(AD$2:$AD182,AD182)=1,OrdeUP100(RANK(AD182,$AD$2:$AD$311)),OrdeUP100(RANK(AD182,$AD$2:$AD$311))&" مكرّر "))) -> السّادس والعشرون مكرّر
A183: a182 | B183: 4 | C183: 5 | D183: 9 | E183: دون المستوى | F183: 7 | G183: 15 | H183: 22 | I183: دون المستوى | J183: 1 | K183: 0 | L183: 1 | M183: دون المستوى | N183: 18 | O183: 4 | P183: 22 | Q183: دون المستوى | R183: 19 | S183: 7 | T183: 26 | U183: مقبول | V183: 15 | W183: 15 | X183: 30 | Y183: مقبول | Z183: 14 | AA183: 2 | AB183: 11 | AC183: دون المستوى | AD183: 121 | AE183: دون المستوى | AF183: 0.3457142857 | AG183: =IF(A183="","",IF(AF183="غ","غائب",IF(COUNTIF(AD$2:$AD183,AD183)=1,OrdeUP100(RANK(AD183,$AD$2:$AD$311)),OrdeUP100(RANK(AD183,$AD$2:$AD$311))&" مكرّر "))) -> مئتين والثّاني والعشرون
A184: a183 | B184: 7 | C184: 6 | D184: 13 | E184: دون المستوى | F184: 6 | G184: 16 | H184: 22 | I184: دون المستوى | J184: 13 | K184: 2 | L184: 15 | M184: دون المستوى | N184: 5 | O184: 0 | P184: 5 | Q184: دون المستوى | R184: 8 | S184: 11 | T184: 19 | U184: دون المستوى | V184: 17 | W184: 8 | X184: 25 | Y184: مقبول | Z184: 7 | AA184: 19 | AB184: 13 | AC184: دون المستوى | AD184: 112 | AE184: دون المستوى | AF184: 0.32 | AG184: =IF(A184="","",IF(AF184="غ","غائب",IF(COUNTIF(AD$2:$AD184,AD184)=1,OrdeUP100(RANK(AD184,$AD$2:$AD$311)),OrdeUP100(RANK(AD184,$AD$2:$AD$311))&" مكرّر "))) -> مئتين والخامس والخمسون مكرّر
A185: a184 | B185: 13 | C185: 2 | D185: 15 | E185: دون المستوى | F185: 18 | G185: 8 | H185: 26 | I185: مقبول | J185: 13 | K185: 19 | L185: 32 | M185: مقبول | N185: 0 | O185: 19 | P185: 19 | Q185: دون المستوى | R185: 4 | S185: 16 | T185: 20 | U185: دون المستوى | V185: 6 | W185: 3 | X185: 9 | Y185: دون المستوى | Z185: 12 | AA185: 7 | AB185: 4 | AC185: دون المستوى | AD185: 125 | AE185: دون المستوى | AF185: 0.3571428571 | AG185: =IF(A185="","",IF(AF185="غ","غائب",IF(COUNTIF(AD$2:$AD185,AD185)=1,OrdeUP100(RANK(AD185,$AD$2:$AD$311)),OrdeUP100(RANK(AD185,$AD$2:$AD$311))&" مكرّر "))) -> مئتين مكرّر
A186: a185 | B186: 17 | C186: 12 | D186: 29 | E186: مقبول | F186: 18 | G186: 17 | H186: 35 | I186: جيد | J186: 7 | K186: 17 | L186: 24 | M186: دون المستوى | N186: 17 | O186: 8 | P186: 25 | Q186: مقبول | R186: 15 | S186: 2 | T186: 17 | U186: دون المستوى | V186: 6 | W186: 19 | X186: 25 | Y186: مقبول | Z186: 13 | AA186: 5 | AB186: 0 | AC186: دون المستوى | AD186: 155 | AE186: دون المستوى | AF186: 0.4428571429 | AG186: =IF(A186="","",IF(AF186="غ","غائب",IF(COUNTIF(AD$2:$AD186,AD186)=1,OrdeUP100(RANK(AD186,$AD$2:$AD$311)),OrdeUP100(RANK(AD186,$AD$2:$AD$311))&" مكرّر "))) -> الثّامن والثّلاثون مكرّر
A187: a186 | B187: 4 | C187: 18 | D187: 22 | E187: دون المستوى | F187: 10 | G187: 20 | H187: 30 | I187: مقبول | J187: 10 | K187: 16 | L187: 26 | M187: مقبول | N187: 16 | O187: 13 | P187: 29 | Q187: مقبول | R187: 15 | S187: 11 | T187: 26 | U187: مقبول | V187: 12 | W187: 1 | X187: 13 | Y187: دون المستوى | Z187: 15 | AA187: 16 | AB187: 4 | AC187: دون المستوى | AD187: 150 | AE187: دون المستوى | AF187: 0.4285714286 | AG187: =IF(A187="","",IF(AF187="غ","غائب",IF(COUNTIF(AD$2:$AD187,AD187)=1,OrdeUP100(RANK(AD187,$AD$2:$AD$311)),OrdeUP100(RANK(AD187,$AD$2:$AD$311))&" مكرّر "))) -> الستون مكرّر
A188: a187 | B188: 12 | C188: 11 | D188: 23 | E188: دون المستوى | F188: 14 | G188: 19 | H188: 33 | I188: جيد | J188: 15 | K188: 3 | L188: 18 | M188: دون المستوى | N188: 2 | O188: 6 | P188: 8 | Q188: دون المستوى | R188: 9 | S188: 7 | T188: 16 | U188: دون المستوى | V188: 17 | W188: 12 | X188: 29 | Y188: مقبول | Z188: 4 | AA188: 3 | AB188: 19 | AC188: دون المستوى | AD188: 146 | AE188: دون المستوى | AF188: 0.4171428571 | AG188: =IF(A188="","",IF(AF188="غ","غائب",IF(COUNTIF(AD$2:$AD188,AD188)=1,OrdeUP100(RANK(AD188,$AD$2:$AD$311)),OrdeUP100(RANK(AD188,$AD$2:$AD$311))&" مكرّر "))) -> الحادي والثّمانون مكرّر
A189: a188 | B189: 3 | C189: 18 | D189: 21 | E189: دون المستوى | F189: 12 | G189: 14 | H189: 26 | I189: مقبول | J189: 19 | K189: 11 | L189: 30 | M189: مقبول | N189: 8 | O189: 4 | P189: 12 | Q189: دون المستوى | R189: 9 | S189: 15 | T189: 24 | U189: دون المستوى | V189: 1 | W189: 16 | X189: 17 | Y189: دون المستوى | Z189: 19 | AA189: 12 | AB189: 13 | AC189: دون المستوى | AD189: 143 | AE189: دون المستوى | AF189: 0.4085714286 | AG189: =IF(A189="","",IF(AF189="غ","غائب",IF(COUNTIF(AD$2:$AD189,AD189)=1,OrdeUP100(RANK(AD189,$AD$2:$AD$311)),OrdeUP100(RANK(AD189,$AD$2:$AD$311))&" مكرّر "))) -> الثّامن والتّسعون مكرّر
A190: a189 | B190: 19 | C190: 20 | D190: 39 | E190: جيد جداً | F190: 14 | G190: 2 | H190: 16 | I190: دون المستوى | J190: 15 | K190: 19 | L190: 34 | M190: جيد | N190: 9 | O190: 4 | P190: 13 | Q190: دون المستوى | R190: 3 | S190: 0 | T190: 3 | U190: دون المستوى | V190: 14 | W190: 20 | X190: 34 | Y190: جيد | Z190: 12 | AA190: 7 | AB190: 14 | AC190: دون المستوى | AD190: 153 | AE190: دون المستوى | AF190: 0.4371428571 | AG190: =IF(A190="","",IF(AF190="غ","غائب",IF(COUNTIF(AD$2:$AD190,AD190)=1,OrdeUP100(RANK(AD190,$AD$2:$AD$311)),OrdeUP100(RANK(AD190,$AD$2:$AD$311))&" مكرّر "))) -> الخمسون مكرّر
A191: a190 | B191: 18 | C191: 9 | D191: 27 | E191: مقبول | F191: 5 | G191: 5 | H191: 10 | I191: دون المستوى | J191: 1 | K191: 19 | L191: 20 | M191: دون المستوى | N191: 4 | O191: 1 | P191: 5 | Q191: دون المستوى | R191: 17 | S191: 3 | T191: 20 | U191: دون المستوى | V191: 1 | W191: 20 | X191: 21 | Y191: دون المستوى | Z191: 2 | AA191: 12 | AB191: 6 | AC191: دون المستوى | AD191: 109 | AE191: دون المستوى | AF191: 0.3114285714 | AG191: =IF(A191="","",IF(AF191="غ","غائب",IF(COUNTIF(AD$2:$AD191,AD191)=1,OrdeUP100(RANK(AD191,$AD$2:$AD$311)),OrdeUP100(RANK(AD191,$AD$2:$AD$311))&" مكرّر "))) -> مئتين والخامس والستون مكرّر
A192: a191 | B192: 14 | C192: 9 | D192: 23 | E192: دون المستوى | F192: 20 | G192: 12 | H192: 32 | I192: مقبول | J192: 15 | K192: 17 | L192: 32 | M192: مقبول | N192: 11 | O192: 11 | P192: 22 | Q192: دون المستوى | R192: 4 | S192: 3 | T192: 7 | U192: دون المستوى | V192: 14 | W192: 3 | X192: 17 | Y192: دون المستوى | Z192: 14 | AA192: 9 | AB192: 16 | AC192: دون المستوى | AD192: 149 | AE192: دون المستوى | AF192: 0.4257142857 | AG192: =IF(A192="","",IF(AF192="غ","غائب",IF(COUNTIF(AD$2:$AD192,AD192)=1,OrdeUP100(RANK(AD192,$AD$2:$AD$311)),OrdeUP100(RANK(AD192,$AD$2:$AD$311))&" مكرّر "))) -> الثّالث والستون مكرّر
A193: a192 | B193: 2 | C193: 1 | D193: 3 | E193: دون المستوى | F193: 17 | G193: 7 | H193: 24 | I193: دون المستوى | J193: 3 | K193: 16 | L193: 19 | M193: دون المستوى | N193: 2 | O193: 13 | P193: 15 | Q193: دون المستوى | R193: 0 | S193: 3 | T193: 3 | U193: دون المستوى | V193: 12 | W193: 19 | X193: 31 | Y193: مقبول | Z193: 0 | AA193: 1 | AB193: 4 | AC193: دون المستوى | AD193: 99 | AE193: دون المستوى | AF193: 0.2828571429 | AG193: =IF(A193="","",IF(AF193="غ","غائب",IF(COUNTIF(AD$2:$AD193,AD193)=1,OrdeUP100(RANK(AD193,$AD$2:$AD$311)),OrdeUP100(RANK(AD193,$AD$2:$AD$311))&" مكرّر "))) -> مئتين والحادي والتّسعون
A194: a193 | B194: 16 | C194: 13 | D194: 29 | E194: =IF(D194="","",VLOOKUP(D194,تقدير,2,1)) -> مقبول | F194: 8 | G194: 6 | H194: 14 | I194: =IF(H194="","",VLOOKUP(H194,تقدير,2,1)) -> دون المستوى | J194: 15 | K194: 2 | L194: 17 | M194: =IF(L194="","",VLOOKUP(L194,تقدير,2,1)) -> دون المستوى | N194: 18 | O194: 14 | P194: 32 | Q194: =IF(P194="","",VLOOKUP(P194,تقدير,2,1)) -> مقبول | R194: 20 | S194: 18 | T194: 38 | U194: =IF(T194="","",VLOOKUP(T194,تقدير,2,1)) -> جيد جداً | V194: 8 | W194: 1 | X194: 9 | Y194: =IF(X194="","",VLOOKUP(X194,تقدير,2,1)) -> دون المستوى | Z194: 0 | AA194: 17 | AB194: 17 | AC194: =IF(AB194="","",VLOOKUP(AB194,تقدير,2,1)) -> دون المستوى | AD194: 156 | AE194: =IF(A194="","",IF(AD194="","",IF(AD194="غ","غائب",VLOOKUP((AD194/350)*100/(2),تقدير,2,1)))) -> دون المستوى | AF194: 0.4457142857 | AG194: =IF(A194="","",IF(AF194="غ","غائب",IF(COUNTIF(AD$2:$AD194,AD194)=1,OrdeUP100(RANK(AD194,$AD$2:$AD$311)),OrdeUP100(RANK(AD194,$AD$2:$AD$311))&" مكرّر "))) -> السّادس والثّلاثون مكرّر
A195: a194 | B195: 0 | C195: 16 | D195: 16 | E195: دون المستوى | F195: 8 | G195: 2 | H195: =IF(A195="","",IF(AND(F195="غ",G195="غ"),"غ",SUM(F195:G195))) -> 10 | I195: دون المستوى | J195: 14 | K195: 15 | L195: =IF(A195="","",IF(AND(J195="غ",K195="غ"),"غ",SUM(J195:K195))) -> 29 | M195: مقبول | N195: 8 | O195: 12 | P195: =IF(A195="","",IF(AND(N195="غ",O195="غ"),"غ",SUM(N195:O195))) -> 20 | Q195: دون المستوى | R195: 19 | S195: 6 | T195: =IF(A195="","",IF(AND(R195="غ",S195="غ"),"غ",SUM(R195:S195))) -> 25 | U195: مقبول | V195: 1 | W195: 18 | X195: =IF(A195="","",IF(AND(V195="غ",W195="غ"),"غ",SUM(V195:W195))) -> 19 | Y195: دون المستوى | Z195: 3 | AA195: 2 | AB195: 20 | AC195: دون المستوى | AD195: =IF(A195="","",IF(AND(D195="غ",H195="غ",L195="غ",P195="غ",T195="غ",X195="غ",AB195="غ"),"غ",SUM(D195,H195,L195,P195,T195,X195,AB195))) -> 139 | AE195: دون المستوى | AF195: =IF(A195="","",IF(AD195="غ","غ",AD195/350)) -> 0.3971428571 | AG195: =IF(A195="","",IF(AF195="غ","غائب",IF(COUNTIF(AD$2:$AD195,AD195)=1,OrdeUP100(RANK(AD195,$AD$2:$AD$311)),OrdeUP100(RANK(AD195,$AD$2:$AD$311))&" مكرّر "))) -> مئة والخامس والعشرون مكرّر
A196: a195 | B196: 15 | C196: 2 | D196: 17 | E196: دون المستوى | F196: 20 | G196: 15 | H196: 35 | I196: جيد | J196: 4 | K196: 6 | L196: 10 | M196: دون المستوى | N196: 1 | O196: 9 | P196: 10 | Q196: دون المستوى | R196: 1 | S196: 5 | T196: 6 | U196: دون المستوى | V196: 16 | W196: 15 | X196: 31 | Y196: مقبول | Z196: 14 | AA196: 6 | AB196: 18 | AC196: دون المستوى | AD196: 127 | AE196: دون المستوى | AF196: 0.3628571429 | AG196: =IF(A196="","",IF(AF196="غ","غائب",IF(COUNTIF(AD$2:$AD196,AD196)=1,OrdeUP100(RANK(AD196,$AD$2:$AD$311)),OrdeUP100(RANK(AD196,$AD$2:$AD$311))&" مكرّر "))) -> مئة والثّاني والتّسعون مكرّر
A197: a196 | B197: 8 | C197: 0 | D197: 8 | E197: دون المستوى | F197: 10 | G197: 18 | H197: 28 | I197: مقبول | J197: 19 | K197: 14 | L197: 33 | M197: جيد | N197: 11 | O197: 2 | P197: 13 | Q197: دون المستوى | R197: 13 | S197: 7 | T197: 20 | U197: دون المستوى | V197: 3 | W197: 0 | X197: 3 | Y197: دون المستوى | Z197: 16 | AA197: 13 | AB197: 7 | AC197: دون المستوى | AD197: 112 | AE197: دون المستوى | AF197: 0.32 | AG197: =IF(A197="","",IF(AF197="غ","غائب",IF(COUNTIF(AD$2:$AD197,AD197)=1,OrdeUP100(RANK(AD197,$AD$2:$AD$311)),OrdeUP100(RANK(AD197,$AD$2:$AD$311))&" مكرّر "))) -> مئتين والخامس والخمسون مكرّر
A198: a197 | B198: 10 | C198: 20 | D198: 30 | E198: مقبول | F198: 4 | G198: 12 | H198: 16 | I198: دون المستوى | J198: 12 | K198: 13 | L198: 25 | M198: مقبول | N198: 8 | O198: 2 | P198: 10 | Q198: دون المستوى | R198: 6 | S198: 16 | T198: 22 | U198: دون المستوى | V198: 15 | W198: 6 | X198: 21 | Y198: دون المستوى | Z198: 18 | AA198: 0 | AB198: 16 | AC198: دون المستوى | AD198: 140 | AE198: دون المستوى | AF198: 0.4 | AG198: =IF(A198="","",IF(AF198="غ","غائب",IF(COUNTIF(AD$2:$AD198,AD198)=1,OrdeUP100(RANK(AD198,$AD$2:$AD$311)),OrdeUP100(RANK(AD198,$AD$2:$AD$311))&" مكرّر "))) -> مئة والثّامن عشر مكرّر
A199: a198 | B199: 2 | C199: 0 | D199: 2 | E199: دون المستوى | F199: 15 | G199: 7 | H199: 22 | I199: دون المستوى | J199: 9 | K199: 6 | L199: 15 | M199: دون المستوى | N199: 12 | O199: 11 | P199: 23 | Q199: دون المستوى | R199: 12 | S199: 1 | T199: 13 | U199: دون المستوى | V199: 8 | W199: 7 | X199: 15 | Y199: دون المستوى | Z199: 12 | AA199: 9 | AB199: 7 | AC199: دون المستوى | AD199: 97 | AE199: دون المستوى | AF199: 0.2771428571 | AG199: =IF(A199="","",IF(AF199="غ","غائب",IF(COUNTIF(AD$2:$AD199,AD199)=1,OrdeUP100(RANK(AD199,$AD$2:$AD$311)),OrdeUP100(RANK(AD199,$AD$2:$AD$311))&" مكرّر "))) -> ثلاثمائة
A200: a199 | B200: 9 | C200: 20 | D200: 29 | E200: مقبول | F200: 17 | G200: 11 | H200: 28 | I200: مقبول | J200: 0 | K200: 16 | L200: 16 | M200: دون المستوى | N200: 16 | O200: 10 | P200: 26 | Q200: مقبول | R200: 4 | S200: 1 | T200: 5 | U200: دون المستوى | V200: 1 | W200: 8 | X200: 9 | Y200: دون المستوى | Z200: 5 | AA200: 16 | AB200: 15 | AC200: دون المستوى | AD200: 128 | AE200: دون المستوى | AF200: 0.3657142857 | AG200: =IF(A200="","",IF(AF200="غ","غائب",IF(COUNTIF(AD$2:$AD200,AD200)=1,OrdeUP100(RANK(AD200,$AD$2:$AD$311)),OrdeUP100(RANK(AD200,$AD$2:$AD$311))&" مكرّر "))) -> مئة والثّامن والثّمانون مكرّر
... 112 more rows

Sheet ورقة2

Sheet ورقة3
